Cogmind - Beta 9.4 @@@ ROGUE MODE // 2020.02.22 @ 22:20:08 Player: MeleeHover is a Tier-0 Build Result: Establishing 0b11! Performance ------------- Evolutions (9) 4500 Regions Visited (32) 6400 Robots Destroyed (327) 1635 Value Destroyed (18609) 18609 Prototype IDs (111) 2220 Alien Tech Used (5) 1000 Bonus (52042) 52042 TOTAL SCORE: 86406 Bonus ------- High Alert Combat Kills 1211 Follower Combat Kills 3077 Network Hubs Disabled 200 Aligned with FarCom 300 Met Zhirov 300 Met Warlord at Base 500 MAIN.C Attacked Warlord 500 Built Enhanced Grunts 300 Found Hidden Lab 3000 Hacked Protovariant 500 Met R17 at Research 2000 Met Warlord at Research 2000 Recovered Sigix Corpse 1000 Destroyed MAIN.C Guards 500 Met MAIN.C 5000 Destroyed MAIN.C Shell 5000 Destroyed MAIN.C 10000 Met Architect 300 Destroyed A8 300 Destroyed A6 400 Destroyed A5 500 Destroyed A4 700 Destroyed A3 800 Destroyed A2 1000 Destroyed Architect 15000 Win 3000 Friendly Fire -5346 Cogmind --------- Core Integrity 720/1600 Matter 280/300 Energy 179/490 System Corruption 9% Temperature Cool (20) Movement Hovering (40) Location 0b11 Command Parts ------- > --- POWER (2) -------- Quantum Reactor Zero-point Reactor > --- PROPULSION (6) --- Combat Antigrav System Experimental Gyrokinetic Inverter Experimental Gyrokinetic Inverter Cooled Linear Gravjet Combat Linear Gravjet Combat Linear Gravjet > --- UTILITY (13) ----- Experimental Power Amplifier High-capacity Storage Unit Experimental Melee Analysis Suite Experimental Melee Analysis Suite Experimental Core Analyzer Nanoactuators Nanoactuators Experimental Actuator Array Experimental Phase Shifter Centrium Linked Plating Experimental Powered Armor Experimental Powered Armor AEGIS Remote Shield > --- WEAPON (4) ------- Nanosword Nanosword Plasma Lance Enhanced Force Lance > --- INVENTORY (12) --- Improved Quantum Reactor Cooled Antigrav System Combat Linear Gravjet Combat Linear Gravjet Combat Linear Gravjet Experimental Energy Well (1000) Dimensional Manipulator Experimental Powered Armor Enhanced Force Lance Sigix Corpse Peak State ------------ > --- POWER ------------ Quantum Reactor Zero-point Reactor > --- PROPULSION ------- Combat Antigrav System Experimental Gyrokinetic Inverter Experimental Gyrokinetic Inverter Cooled Linear Gravjet Combat Linear Gravjet Combat Linear Gravjet > --- UTILITY ---------- Desublimator Experimental Power Amplifier High-capacity Storage Unit Experimental Melee Analysis Suite Experimental Melee Analysis Suite Experimental Core Analyzer Nanoactuators Nanoactuators Experimental Actuator Array Centrium Linked Plating Experimental Powered Armor Experimental Powered Armor AEGIS Remote Shield > --- WEAPON ----------- Nanosword Nanosword Plasma Lance Enhanced Force Lance > --- INVENTORY -------- Improved Quantum Reactor Combat Linear Gravjet Combat Linear Gravjet Combat Linear Gravjet Experimental Energy Well Dimensional Manipulator Experimental Powered Armor High-powered Transdimensional Reconstructor Enhanced Force Lance Sigix Corpse [Rating: 232] Favorites ----------- Power Enhanced Nuclear Core Engine Ion Engine Power Core Enhanced Nuclear Core Reactor Quantum Reactor Propulsion Combat Linear Gravjet Treads Light Treads Wheel Armored Huge Wheel Hover Unit Combat Linear Gravjet Utility High-capacity Storage Unit Device Advanced Sensor Array Storage High-capacity Storage Unit Processor Enhanced Optical Array Hackware Hacking Suite Protection Improved Weapon Shielding Weapon Plasma Lance Energy Gun EM Shotgun Energy Cannon Vortex Cannon Ballistic Gun Flak Gun Ballistic Cannon Heavy Flak Cannon Launcher Heavy Rocket Launcher Special Weapon Remote Datajack Impact Weapon Powered Hammer Slashing Weapon Nanosword Piercing Weapon Plasma Lance Build | -11 -10 -10 -10 -9 -8 -7 -7 -6 -6 -6 -6 -6 -5 -5 -5 -5 -5 -5 -4 -4 -4 -4 -4 -3 -3 -3 -3 -2 -2 -1 -1 -1 ------- Run | Scr Mat Min Exi Min Mat Fac Sto Fac Ext Cet Arc Hub Fac Was Fac Upp Upp War Pro Fac Upp Upp Zhi Pro Res Arm Lab Res Tes Acc Com Ac0 Slots Evolved 18 | . . . . . 4 2 . 2 . . . . 2 . . . . . . 2 . . . . 2 . . 2 . 2 . . Power 1 | . . . . . . . . . . . . . . . . . . . . 1 . . . . . . . . . . . . Propulsion 4 | . . . . . 2 . . . . . . . . . . . . . . . . . . . . . . 2 . . . . Utility 11 | . . . . . 2 2 . 2 . . . . 2 . . . . . . . . . . . 1 . . . . 2 . . Weapon 2 | . . . . . . . . . . . . . . . . . . . . 1 . . . . 1 . . . . . . . Parts Attached 498 | 9 12 3 4 4 30 9 49 11 16 10 12 11 50 5 . 1 2 12 7 4 3 6 3 5 14 40 9 29 20 5 32 71 Power 32 | . 4 . . . 1 . 3 1 . 1 1 . . . . . . 1 . . 1 . . 2 . 3 1 4 . . 3 6 Engine 7 | . 4 . . . 1 . 2 . . . . . . . . . . . . . . . . . . . . . . . . . Core 4 | . . . . . . . 1 1 . . 1 . . . . . . . . . . . . . . . . 1 . . . . Reactor 21 | . . . . . . . . . . 1 . . . . . . . 1 . . 1 . . 2 . 3 1 3 . . 3 6 Propulsion 66 | 2 . . . . 5 . 10 . 4 2 . . 1 1 . . . . . . . . . 1 3 8 4 3 3 . 5 14 Treads 33 | 2 . . . . 3 . 9 . 4 2 . . 1 1 . . . . . . . . . 1 2 8 . . . . . . Leg . | . . . . . . . . . . . . . . . . . . . . . . . . . . . . . . . . . Wheel 4 | . . . . . 2 . 1 . . . . . . . . . . . . . . . . . 1 . . . . . . . Hover 29 | . . . . . . . . . . . . . . . . . . . . . . . . . . . 4 3 3 . 5 14 Flight . | . . . . . . . . . . . . . . . . . . . . . . . . . . . . . . . . . Utility 226 | 4 1 1 1 . 4 5 11 3 4 4 7 11 27 1 . . . 9 1 3 1 2 3 1 8 19 2 12 14 5 24 38 Device 113 | 2 . 1 . . 1 1 4 . 1 1 2 2 13 . . . . 4 1 1 1 2 1 1 3 12 2 7 6 5 11 28 Storage 25 | . . . 1 . 1 1 2 1 . 2 2 . 2 . . . . 2 . . . . 1 . . 2 . 2 1 . 4 1 Processor 17 | 2 . . . . . 2 . 2 . . 1 . 1 . . . . 1 . . . . . . 1 1 . . . . 4 2 Hackware 19 | . . . . . . 1 1 . 2 . . 7 . . . . . . . 1 . . . . 2 1 . . 4 . . . Protection 52 | . 1 . . . 2 . 4 . 1 1 2 2 11 1 . . . 2 . 1 . . 1 . 2 3 . 3 3 . 5 7 Artifact . | . . . . . . . . . . . . . . . . . . . . . . . . . . . . . . . . . Weapon 174 | 3 7 2 3 4 20 4 25 7 8 3 4 . 22 3 . 1 2 2 6 1 1 4 . 1 3 10 2 10 3 . . 13 Energy Gun 18 | 1 . . . . 5 . 6 . 1 . . . 2 . . . 1 . . . . 1 . . . . . 1 . . . . Energy Cannon 35 | . 1 1 1 1 7 3 1 . . . . . 1 . . . . 2 3 . . 2 . 1 1 7 2 . . . . 1 Ballistic Gun 47 | 2 4 1 2 3 . . 9 4 2 3 3 . 9 2 . . . . . . . . . . . 1 . . 1 . . 1 Ballistic Cannon 4 | . . . . . . . 1 1 1 . . . . . . . . . . . . . . . 1 . . . . . . . Launcher 17 | . . . . . 3 . 2 . . . . . 4 . . 1 1 . 3 . 1 1 . . . 1 . . . . . . Special Weapon 6 | . 2 . . . 2 . . . . . . . 2 . . . . . . . . . . . . . . . . . . . Impact Weapon 13 | . . . . . 3 1 6 2 1 . . . . . . . . . . . . . . . . . . . . . . . Slashing Weapon 16 | . . . . . . . . . 3 . 1 . 4 . . . . . . . . . . . . . . 3 . . . 5 Piercing Weapon 18 | . . . . . . . . . . . . . . 1 . . . . . 1 . . . . 1 1 . 6 2 . . 6 Special Melee Weapon . | . . . . . . . . . . . . . . . . . . . . . . . . . . . . . . . . . Unidentified Prototypes 49 | . . . . . . . 5 . . 3 1 . 1 . . . . 4 . . 1 . 3 1 . 1 4 6 3 . 6 10 Parts Lost 41 | . . . . . . . 5 3 1 1 . . 1 . . . . . . . . . . . . 15 . . . . 4 11 Power 5 | . . . . . . . . 1 . . . . . . . . . . . . . . . . . 1 . . . . 2 1 Propulsion 8 | . . . . . . . 2 . 1 . . . . . . . . . . . . . . . . 2 . . . . . 3 Utility 13 | . . . . . . . . . . . . . 1 . . . . . . . . . . . . 6 . . . . 2 4 Weapon 15 | . . . . . . . 3 2 . 1 . . . . . . . . . . . . . . . 6 . . . . . 3 Highest Loss Streak 4 | . . . . . . . 2 3 1 1 . . 1 . . . . . . . . . . . . 4 . . . . 2 3 Average Slot Usage (%) 82 | . 92 100 84 71 87 92 87 92 92 82 78 80 79 76 70 64 64 67 76 69 73 76 75 83 74 78 66 93 99 100 96 95 Engine 1 | . 7 14 14 14 8 7 2 . . . . . . . . . . . . . . . . . . . . . . . . . Core 1 | . . . . . . . 4 5 6 1 . 6 5 5 5 5 5 2 . . . . . . . . . . . . . . Reactor 3 | . . . . . . . . . . 3 5 . . . . . . 2 5 5 5 5 5 9 9 8 8 4 8 8 7 7 Treads 13 | . 28 28 28 28 30 30 24 26 25 17 13 13 11 11 11 11 11 11 11 10 10 10 10 10 7 8 8 . . . . . Hover 4 | . . . . . . . . . . . . . . . . . . . . . . . . . . . . 26 26 24 23 23 Device 7 | . 14 14 1 . 1 3 . . . 5 4 3 7 17 5 5 5 4 11 10 10 10 10 13 6 5 13 17 9 18 14 21 Storage 15 | . . . 12 14 16 16 15 13 13 17 25 14 15 17 17 17 17 18 17 15 15 15 15 15 14 18 14 13 13 12 14 7 Processor 6 | . 11 . . . . 7 1 13 6 6 6 7 6 11 11 11 11 11 11 10 10 10 10 6 4 4 4 4 4 4 11 11 Hackware 5 | . . . . . . 3 12 13 19 6 . 11 12 5 . . . . . . . . . . 6 10 4 3 11 10 . . Protection 6 | . 2 14 1 . 9 5 7 6 6 9 7 6 5 . 5 5 5 5 11 9 10 10 7 10 4 3 4 6 7 7 7 8 Energy Cannon 2 | . 1 12 13 6 6 7 1 . . . . . . 5 . . . 3 4 5 5 8 10 9 3 5 . 3 . . . . Ballistic Gun 3 | . 22 15 11 7 . . 8 10 5 4 12 6 4 . 5 . . . . . . . . . . . . . 1 . . . Slashing Weapon 1 | . . . . . . . . . 5 3 . 6 2 . . . . . . . . . . . . . . . . . . 5 Piercing Weapon 3 | . . . . . . . . . . . . . . . 5 5 5 4 . 1 . . . . 4 3 4 8 15 16 16 8 Naked Turns . | . . . . . . . . . . . . . . . . . . . . . . . . . . . . . . . . . Heaviest Build 314 | 4 12 14 107 89 122 134 179 116 117 152 187 154 173 191 191 185 192 247 197 200 219 225 225 225 246 314 217 192 173 172 190 164 Greatest Support 192 | 40 40 40 40 40 83 83 83 80 91 160 160 160 160 150 140 140 140 140 140 140 140 140 140 140 150 160 155 192 192 192 192 190 Greatest Overweight (x) 61 | . . . 2 2 4 1 4 1 1 2 61 . 1 1 1 1 1 1 1 1 1 1 1 1 8 2 57 . 1 . 61 . Average Overweight (x) 1 | . . . 1 2 1 1 2 1 1 . 12 . . 1 1 1 1 1 1 1 1 1 1 1 3 1 13 . . . . . Largest Inventory Capacity 66 | 4 4 4 24 24 30 36 44 50 30 38 44 38 52 38 38 38 38 46 40 40 40 40 40 40 40 66 26 28 28 28 28 20 Average Capacity 32 | 4 4 4 21 24 29 30 30 30 30 34 42 33 36 38 38 38 38 40 40 40 40 40 40 40 40 44 26 27 28 28 27 14 Most Carried 46 | 4 4 3 24 24 30 35 35 27 30 31 37 32 38 38 36 36 38 42 40 39 37 35 38 40 38 46 26 28 28 27 28 20 Average Carried 29 | 1 3 3 13 22 28 30 27 25 27 28 35 31 33 35 34 35 36 38 38 38 35 33 34 38 35 40 25 25 27 26 24 12 Final Capacity 40 | 4 4 4 24 24 30 36 30 30 30 36 38 32 38 38 38 38 38 40 40 40 40 40 40 40 40 26 26 28 28 28 20 12 Final Carried 39 | 4 3 3 22 24 30 35 28 24 25 29 31 32 31 34 36 36 38 38 39 37 35 32 37 38 36 26 24 28 28 27 19 10 Class Distribution -------------------- 60% | Hauler-Mutant 11% | Hacker-Mutant 8% | Hauler-Assassin 6% | Scavenger-Mutant 4% | Scavenger-Sprinter 3% | Commander-Mutant Dominant Class ---------------- Mutant | -10/Materials Mutant | -10/Mines Hauler-Mutant | -10/Exiles Hauler-Mutant | -9/Mines Hauler-Mutant | -8/Materials Hauler-Mutant | -7/Factory Hauler-Mutant | -7/Storage Hauler-Mutant | -6/Factory Hacker-Mutant | -6/Extension Hauler-Mutant | -6/Cetus Hauler-Mutant | -6/Archives Hauler-Mutant | -6/Hub_04(d) Hauler-Mutant | -5/Factory Hauler-Skirmisher | -5/Waste Hauler-Assassin | -5/Factory Hauler-Assassin | -5/Upper Caves Hauler-Assassin | -5/Upper Caves Hauler-Mutant | -5/Warlord Hauler-Mutant | -4/Proximity Caves Hauler-Mutant | -4/Factory Hauler-Mutant | -4/Upper Caves Hauler-Mutant | -4/Upper Caves Hauler-Mutant | -4/Zhirov Hauler-Mutant | -3/Proximity Caves Hauler-Mutant | -3/Research Hauler-Mutant | -3/Armory Hauler-Mutant | -3/Lab Hauler-Mutant | -2/Research Hacker-Mutant | -2/Testing Hacker-Mutant | -1/Access Scavenger-Mutant | -1/Command Scavenger-Mutant | -1/Access_0 Resources | -11 -10 -10 -10 -9 -8 -7 -7 -6 -6 -6 -6 -6 -5 -5 -5 -5 -5 -5 -4 -4 -4 -4 -4 -3 -3 -3 -3 -2 -2 -1 -1 -1 ----------- Run | Scr Mat Min Exi Min Mat Fac Sto Fac Ext Cet Arc Hub Fac Was Fac Upp Upp War Pro Fac Upp Upp Zhi Pro Res Arm Lab Res Tes Acc Com Ac0 Matter Collected 8252 | 324 34 102 36 84 306 91 1085 283 298 229 334 117 913 285 55 38 48 54 187 . 139 150 . 206 196 707 158 345 291 60 301 796 Remotely 165 | 165 . . . . . . . . . . . . . . . . . . . . . . . . . . . . . . . . Salvage Created 19629 | 198 34 102 . 254 699 91 1786 488 409 440 501 201 1201 1210 175 61 112 . 1026 . 597 499 . 188 644 979 . 284 794 75 2260 4321 Parts 800 | 16 3 4 . 23 30 4 91 11 9 20 33 9 49 6 8 6 7 . 16 . 4 6 . 10 15 44 . 18 38 4 58 258 Haulers Intercepted 10 | . . . . . 1 1 4 1 1 . . . . . 1 . . . . . . . . . . . . . 1 . . . Recyclers Shooed 4 | 1 . . . . 1 . . . . . . . 2 . . . . . . . . . . . . . . . . . . . Parts Field Recycled . | . . . . . . . . . . . . . . . . . . . . . . . . . . . . . . . . . Retrieved Matter . | . . . . . . . . . . . . . . . . . . . . . . . . . . . . . . . . . Parts Self-Destructed 96 | . . . . . . . . . . . . . . . . 1 11 52 9 . 1 14 . 8 . . . . . . . . Prevented 14 | . . . . . . . . . . . . . . . . . 1 13 . . . . . . . . . . . . . . Kills | -11 -10 -10 -10 -9 -8 -7 -7 -6 -6 -6 -6 -6 -5 -5 -5 -5 -5 -5 -4 -4 -4 -4 -4 -3 -3 -3 -3 -2 -2 -1 -1 -1 ------- Run | Scr Mat Min Exi Min Mat Fac Sto Fac Ext Cet Arc Hub Fac Was Fac Upp Upp War Pro Fac Upp Upp Zhi Pro Res Arm Lab Res Tes Acc Com Ac0 Combat Hostiles Destroyed 254 | . 1 2 . 6 13 1 29 5 3 6 1 3 22 4 1 5 4 . 22 . 9 10 . 12 5 22 . . 6 1 17 44 Melee 74 | . . . . . . . 1 . 1 3 . 2 2 . . 1 . . 1 . . . . . . 1 . . . 1 17 44 Guns 63 | . . 1 . 3 3 . 23 4 2 3 1 1 13 . 1 . 1 . . . . . . . . 1 . . 6 . . . Cannons 33 | . 1 1 . 3 2 1 . 1 . . . . . . . . . . 3 . 1 1 . 3 . 16 . . . . . . AOE 50 | . . . . . 6 . 3 . . . . . 7 . . 4 3 . 7 . 3 4 . 9 . 4 . . . . . . Classes Destroyed 25 | 2 1 . . 2 6 1 1 . 1 . . . . 1 . 1 . . 1 . . 1 . 1 1 3 . 1 1 . . . Worker 10 | . . . . 1 . . . 1 . . . 1 3 . 2 . . . . . . . . . . . . . 2 . . . Builder 6 | . . . . . . . 1 1 . . . . 3 . . . . . . . . . . . . . . . . 1 . . Tunneler 5 | 5 . . . . . . . . . . . . . . . . . . . . . . . . . . . . . . . . Hauler 10 | . . . . . 1 1 4 1 1 . . . . . 1 . . . . . . . . . . . . . 1 . . . Recycler 7 | 1 . . . 1 . . 1 . . . . . 2 . . . . . . . . . . . . . . . 1 . 1 . Minesweeper 1 | . . . . . . . . . . . . . . . . . . . . . . 1 . . . . . . . . . . Mechanic 1 | . . . . . . . . . . . . . . . . . . . . . . . . . . . . 1 . . . . Operator 15 | . . . . . 1 . . . . . 9 . 1 . . . . . . . . . . . . . . 3 1 . . . Drone 2 | . . . . . . . . . . . . . . . . . . . . . . . . 2 . . . . . . . . Watcher 6 | . . . . . 1 . . . . 1 . . 1 . . . . . . . . . . . . . . 3 . . . . Swarmer 41 | . . . . 3 3 . 3 . . 3 . . . . . 4 3 . 10 . 1 3 . 3 . . . . . . 5 . Saboteur 1 | . . . . . . . . . . . . . . . . . . . . . . . . . . 1 . . . . . . Grunt 64 | . 1 2 . 3 5 . 13 2 2 . . . 12 . 1 . . . 4 . 5 5 . . 4 1 . . . . 4 . Brawler 6 | . . . . . 1 . . 1 . . . . 1 . . . . . 1 . 1 . . . . 1 . . . . . . Duelist 6 | . . . . . . . . . . . . . 2 . . . . . . . 1 . . . . 3 . . . . . . Protector 1 | . . . . . . . . . . . . . . . . . . . . . . . . . . 1 . . . . . . Researcher 1 | . . . . . . . . . . . . . . . . . . . . . . . . . . . . . 1 . . . Sentry 29 | . . . . . 2 . 12 1 1 . 1 2 4 . . . 1 . 1 . 1 1 . . 1 1 . . . . . . Specialist 4 | . . . . . . . . . . . . . . . . . . . . . . . . . . 4 . . . . . . Hunter 14 | . . . . . 2 . . 2 . . . . 1 . . . . . . . . . . 2 . 4 . . 3 . . . Programmer 22 | . . . . . . 1 1 . . . . 1 2 . . . . . 2 . . . . 3 . 6 . . 3 1 2 . Behemoth 1 | . . . . . . . . . . . . . . . . . . . 1 . . . . . . . . . . . . . Compactor 4 | . . . . . . . . . . . . . . 4 . . . . . . . . . . . . . . . . . . Cetus Guard 3 | . . . . . . . . . . 3 . . . . . . . . . . . . . . . . . . . . . . M Guard 2 | . . . . . . . . . . . . . . . . . . . . . . . . . . . . . . . 2 . Enhanced Grunt 28 | . . . . . . . . . . . 1 . . . . . . . . . . . . . . . . . . . . 27 Enhanced Sentry 2 | . . . . . . . . . . . . . . . . . . . . . . . . . . . . . . . . 2 Enhanced Hunter 8 | . . . . . . . . . . . . . . . . . . . . . . . . . . . . . . . . 8 Combat Programmer 2 | . . . . . . . . . . . . . . . . . . . . . . . . . . . . . . . 2 . Master Thief 9 | . . . . . . . . . . . . . . . . 1 . . 3 . . 1 . 4 . . . . . . . . Savage 1 | . . . . . . . . . 1 . . . . . . . . . . . . . . . . . . . . . . . Butcher 2 | . . . . . . . . . 1 1 . . . . . . . . . . . . . . . . . . . . . . Guerrilla 1 | . . . . . . . . . . 1 . . . . . . . . . . . . . . . . . . . . . . Revision 2 | . . . . . . . . . . . . . . . . . . . . . . . . . 2 . . . . . . . Best Kill Streak 12 | 6 1 2 . 3 3 2 5 4 2 3 5 2 12 2 1 4 4 . 5 . 9 4 . 7 5 6 . 2 6 2 7 5 Combat Bots Only 9 | . 1 2 . 3 3 1 5 2 2 3 1 1 8 2 1 4 4 . 5 . 9 4 . 7 5 6 . . 6 1 7 5 Max Kills in Single Turn 4 | 1 1 1 . 1 2 1 2 2 1 1 2 1 3 1 1 2 3 . 4 . 2 3 . 2 1 2 . 1 2 1 1 2 Gunslinging . | . . . . . . . . . . . . . . . . . . . . . . . . . . . . . . . . . Exploded 3 | . . . . . 2 . 2 . . . . . 3 . . 2 3 . 2 . 1 2 . 2 . 2 . . . . . . Melee 2 | . . . . . . . 1 . 1 1 . 1 1 . . 1 . . 1 . . . . . . 1 . . . 1 1 2 Uniques/NPCs Destroyed 9 | . . . . . . . . . . . . . . . . . . . . . . . . . 1 . . . . . 1 7 Revision 17++ (-3/Research) MAIN.C Shell (-1/Command) MAIN.C (-1/Command) A8 (-1/Access_0) A6 (-1/Access_0) A5 (-1/Access_0) A2 (-1/Access_0) A4 (-1/Access_0) Architect (-1/Access_0) A3 (-1/Access_0) Combat | -11 -10 -10 -10 -9 -8 -7 -7 -6 -6 -6 -6 -6 -5 -5 -5 -5 -5 -5 -4 -4 -4 -4 -4 -3 -3 -3 -3 -2 -2 -1 -1 -1 -------- Run | Scr Mat Min Exi Min Mat Fac Sto Fac Ext Cet Arc Hub Fac Was Fac Upp Upp War Pro Fac Upp Upp Zhi Pro Res Arm Lab Res Tes Acc Com Ac0 Damage Taken 24863 | . . 148 . 220 665 78 3031 928 444 1434 24 166 1861 . . 24 135 . 464 72 176 322 . 620 653 6300 . 28 131 344 1892 4703 Core 1926 | . . 15 . 82 83 46 250 86 21 145 . 6 71 . . . 48 . 39 38 . 16 . . . 246 . . 10 32 111 581 Absorbed by Shields 6850 | . . . . . . . . . 134 11 . . . . . . . . . . . . . . . . . 27 124 329 1797 4428 Reduced by Siege Mode 958 | . . . . . . . . . . 89 . . 107 . . . . . 12 . 9 5 . 15 24 697 . . . . . . Core Remaining (%) 76 | 100 . . . 61 84 . 57 . . . . 69 . . . . . . 84 . . . . 95 . . 74 . 99 . . 45 Volleys Fired 605 | 17 8 7 . 20 35 4 96 26 18 37 30 2 63 8 1 2 3 6 38 . 8 25 . 24 18 83 . 9 17 . . . Largest 3 | 2 1 2 . 2 2 1 2 2 1 2 2 1 2 1 1 1 1 1 1 . 1 3 . 3 1 3 . 1 1 . . . Hottest 360 | 40 100 80 . 60 250 75 138 76 48 80 70 35 240 250 33 39 80 50 250 . 250 250 . 139 81 360 . 100 50 . . . Shots Fired 811 | 34 8 12 . 27 40 4 159 52 18 49 60 2 78 8 1 2 3 6 38 . 8 27 . 26 18 105 . 9 17 . . . Gun 459 | 34 1 5 . 14 8 . 145 47 10 49 60 2 62 . 1 . 1 . . . . . . . . 3 . . 17 . . . Cannon 273 | . 1 7 . 13 19 4 10 5 8 . . . . 8 . . . 6 29 . 7 21 . 13 18 95 . 9 . . . . Launcher 69 | . . . . . 10 . 4 . . . . . 15 . . 2 2 . 9 . 1 6 . 13 . 7 . . . . . . Special 10 | . 6 . . . 3 . . . . . . . 1 . . . . . . . . . . . . . . . . . . . Kinetic 426 | 34 1 5 . 14 . . 120 52 18 24 60 2 57 . 1 . . . . . . . . . . 21 . . 17 . . . Thermal 234 | . 7 7 . 13 14 4 26 . . 25 . . 5 8 . . 1 . 29 . 7 9 . . . 70 . 9 . . . . Explosive 55 | . . . . . . . . . . . . . 15 . . 2 2 . 9 . 1 6 . 13 . 7 . . . . . . Electromagnetic 57 | . . . . . 26 . 13 . . . . . . . . . . . . . . . . . 18 . . . . . . . Entropic 38 | . . . . . . . . . . . . . . . . . . 6 . . . 12 . 13 . 7 . . . . . . Robot Hit Streak 54 | 9 11 14 . 6 12 9 27 7 10 22 22 4 20 8 4 . 1 . 23 . 12 22 . 9 14 54 . 4 8 . . . Robot Miss Streak 12 | 3 . 1 . 4 2 . 12 7 2 11 2 . 2 2 . 1 2 . 4 . 1 1 . 1 1 3 . . 3 . . . Penetration Max 2 | . . . . . . . . . . . 1 1 1 . . . . . . . . . . . . 2 . . 2 . . . Secondary Targets 9 | . . . . 2 . . 4 . . 2 . . 1 . . . . . . . . . . . . . . . . . . . Max Gunslinging Chain 1 | . . . . 1 . . 1 . . 1 . . 1 . . . . . . . . . . . . . . . . . . . Shots Hit Robots 1231 | 24 2 10 . 16 27 4 145 50 33 56 52 13 71 5 3 1 1 . 24 . 6 14 . 17 22 101 . 14 18 4 112 386 Core Hits 976 | 12 2 4 . 10 25 2 163 50 19 40 21 4 109 4 4 7 12 . 42 . 20 26 . 26 6 66 . 10 21 2 60 209 Critical Hits 81 | . . . . . . . . . 2 3 11 3 8 . 1 . . . . . . . . . . 6 . 3 16 3 3 22 Critical Kills 35 | . . . . . . . . . . 2 5 2 5 . 1 . . . . . . . . . . 1 . 2 7 2 . 8 Critical Parts Destroyed 34 | . . . . . . . . . 1 . 6 1 3 . . . . . . . . . . . . 4 . 1 9 1 2 6 Melee Attacks 1126 | . . . . . 13 5 41 4 20 13 1 29 46 . 4 14 3 14 . 6 . . . . 27 39 9 78 71 73 158 458 Impact 67 | . . . . . 13 5 41 4 4 . . . . . . . . . . . . . . . . . . . . . . . Slashing 295 | . . . . . . . . . 16 13 1 29 46 . . . . . . . . . . . . . . 2 . . . 188 Piercing 764 | . . . . . . . . . . . . . . . 4 14 3 14 . 6 . . . . 27 39 9 76 71 73 158 270 Sneak Attacks 37 | . . . . . . . 2 1 11 . 1 1 . . 2 . . . . . . . . . 5 . . 3 8 1 2 . Combat Hostiles 1 | . . . . . . . . . 1 . . . . . . . . . . . . . . . . . . . . . . . Follow-up Attacks 204 | . . . . . . . . . . . . . . . . . . . . . . . . . . . . 1 1 3 38 161 Damage Inflicted 60847 | 185 26 144 . 217 1206 164 3736 986 1673 1481 1497 703 4991 411 273 384 355 . 1916 20 829 1836 . 2247 1147 5772 . 1140 1548 248 6432 19280 Guns 9126 | 185 8 56 . 76 103 . 2962 759 240 1170 1313 119 1823 . 7 . 40 . . . . . . . . 36 . . 229 . . . Cannons 8116 | . 18 88 . 141 443 118 141 90 190 . . . . 136 . . . . 436 . 181 776 . 614 599 3727 . 418 . . . . Explosions 11044 | . . . . . 643 . 417 . . . . . 2706 275 . 354 315 . 1415 . 628 1060 . 1633 . 1598 . . . . . . Melee 32061 | . . . . . . . 194 102 1232 311 153 584 405 . 216 30 . . . . . . . . 537 296 . 722 1319 248 6432 19280 Ramming 500 | . . . . . 17 46 22 35 11 . 31 . 57 . 50 . . . 65 20 20 . . . 11 115 . . . . . . Kinetic 8654 | 185 8 56 . 76 . . 2360 849 430 592 1313 119 1692 . 7 . . . . . . . . . . 738 . . 229 . . . Thermal 9231 | . 18 88 . 141 492 118 695 . . 578 . . 131 411 . . 40 . 1851 . 798 783 . . . 2669 . 418 . . . . Explosive 7105 | . . . . . . . . . . . . . 2706 . . 354 315 . . . 11 488 . 1633 . 1598 . . . . . . Electromagnetic 1761 | . . . . . 697 . 465 . . . . . . . . . . . . . . . . . 599 . . . . . . . Impact 472 | . . . . . . . 194 102 176 . . . . . . . . . . . . . . . . . . . . . . . Slashing 10420 | . . . . . . . . . 1056 311 153 584 405 . . . . . . . . . . . . . . . . . . 7911 Piercing 21169 | . . . . . . . . . . . . . . . 216 30 . . . . . . . . 537 296 . 722 1319 248 6432 11369 Entropic 1535 | . . . . . . . . . . . . . . . . . . . . . . 565 . 614 . 356 . . . . . . Highest Corruption 14 | . . . . . . 1 3 . 1 1 1 1 1 1 1 1 1 1 1 . . . . 4 . 14 14 . 1 1 9 9 Average Corruption 3 | . . . . . . 1 1 . 1 1 1 1 1 1 1 1 1 1 1 . . . . 3 . 10 7 . 1 1 7 9 Corruption Purged 15 | . . . . . . . . . . . 1 . . . . . . . . . . . . . . . 14 . . . . . Effects 235 | . . . . . . . 14 . 7 3 4 . . 2 4 2 . . 1 . . . . 2 . 43 33 . . 1 36 83 Message Errors 49 | . . . . . . . 6 . 3 2 1 . . 2 2 1 . . . . . . . 1 . 7 9 . . . 3 12 Matter Fused 27 | . . . . . . . . . . . . . . . . . . . . . . . . . . 8 7 . . . 6 6 Heat Flow Errors 12 | . . . . . . . 2 . . . . . . . . . . . . . . . . . . 3 3 . . . 2 2 Energy Discharges 28 | . . . . . . . 1 . 2 1 3 . . . 1 1 . . . . . . . . . 6 4 . . 1 1 7 Parts Rejected 2 | . . . . . . . . . . . . . . . . . . . . . . . . . . 1 . . . . . 1 Data Loss (minor) 33 | . . . . . . . 4 . 1 . . . . . 1 . . . 1 . . . . 1 . 3 7 . . . 7 8 Data Loss (major) 10 | . . . . . . . . . . . . . . . . . . . . . . . . . . . 1 . . . 7 2 Misfires 1 | . . . . . . . . . . . . . . . . . . . . . . . . . . 1 . . . . . . Alerts 1 | . . . . . . . . . . . . . . . . . . . . . . . . . . . 1 . . . . . Targeting Errors 69 | . . . . . . . 1 . 1 . . . . . . . . . . . . . . . . 11 1 . . . 10 45 Weapon Failures 3 | . . . . . . . . . . . . . . . . . . . . . . . . . . 3 . . . . . . Overload Shots 3 | . . . . . . . . . . . . . 3 . . . . . . . . . . . . . . . . . . . Overflow Damage 2318 | . . . . . 15 6 . 13 179 11 15 174 152 . . . . . 12 . 16 215 . 172 57 170 . 68 446 . 153 444 Projectiles 482 | . . . . . . . . 8 . . . . . . . . . . 8 . . 145 . 117 26 147 . 31 . . . . Explosions 279 | . . . . . 15 . . . . . . . 128 . . . . . 4 . 4 70 . 55 . 3 . . . . . . Melee 1557 | . . . . . . 6 . 5 179 11 15 174 24 . . . . . . . 12 . . . 31 20 . 37 446 . 153 444 Knockbacks 11 | . . . . . . 2 . 2 1 . . . . . . . . . . . . . . . . 6 . . . . . . Impact 3 | . . . . . . 1 . 1 . . . . . . . . . . . . . . . . . 1 . . . . . . Kinetic 7 | . . . . . . . . 1 1 . . . . . . . . . . . . . . . . 5 . . . . . . Secondary 1 | . . . . . . 1 . . . . . . . . . . . . . . . . . . . . . . . . . . Self-Inflicted Damage 1035 | . . . . . 69 . 80 . . . . . . . . . 44 . 114 . 19 79 . 264 . 366 . . . . . . Shots 54 | . . . . . 3 . 4 . . . . . . . . . 2 . 20 . 3 11 . 5 . 6 . . . . . . Rammed 29 | . . 1 . . 3 1 2 1 3 . 1 . 5 . 2 . . . 4 1 1 . . . 1 3 . . . . . . Targets Rammed 32 | . . 1 . . 4 1 4 1 3 . 1 . 5 . 2 . . . 4 1 1 . . . 1 3 . . . . . . Kicked . | . . . . . . . . . . . . . . . . . . . . . . . . . . . . . . . . . Crushed 3 | . . . . . 1 . 2 . . . . . . . . . . . . . . . . . . . . . . . . . Highest Temperature 365 | . 80 265 . 231 352 72 314 15 . 128 . . 257 244 . 8 46 40 365 . 357 304 . 28 281 348 241 142 . . 224 200 Average Temperature 95 | . 31 149 . 90 65 40 74 7 . 54 . . 74 100 . 5 16 16 146 . 218 148 . 21 198 111 103 56 . . 92 98 Received Heat Transfer 2996 | . . 87 . 51 162 . 969 36 114 9 . 15 405 . . . . . 36 18 54 93 . . 156 351 . 4 4 40 104 288 Effects 5 | . . . . . . . 1 . . . . . . . . . . . . . . . . . . 4 . . . . . . Interference 3 | . . . . . . . . . . . . . . . . . . . . . . . . . . 3 . . . . . . Short Circuit 1 | . . . . . . . 1 . . . . . . . . . . . . . . . . . . . . . . . . . Damage (minor) 1 | . . . . . . . . . . . . . . . . . . . . . . . . . . 1 . . . . . . Siege Activations 38 | . . . . . . . . . . 2 2 . 9 . . 1 . . 5 . 1 5 . 4 1 8 . . . . . . Total Turns 535 | . . . . . . . . . . 35 93 . 131 . . 1 . . 28 . 12 22 . 26 20 167 . . . . . . Longest Duration 91 | . . . . . . . . . . 20 91 . 34 . . 1 . . 12 . 12 10 . 15 20 43 . . . . . . Robots Corrupted 8 | . . . . . 1 . 2 . . . . . . . . . . . . . . . . . 5 . . . . . . . Combat Hostiles 8 | . . . . . 1 . 2 . . . . . . . . . . . . . . . . . 5 . . . . . . . Parts Fried 13 | . . . . . 6 . 1 . . . . . . . . . . . . . . . . . 6 . . . . . . . Impact Corruptions 8 | . . . . . . 1 2 1 . . 1 . . . . . . . . . 1 . . . . 2 . . . . . . Robots Melted 28 | . . . . . 2 . . . . . . . . 4 . . . . 11 . 5 6 . . . . . . . . . . Combat Hostiles 26 | . . . . . 1 . . . . . . . . 4 . . . . 11 . 5 5 . . . . . . . . . . Parts Melted 115 | . . 1 . . 8 . . . . 1 . . . 11 . . 2 . 50 . 20 19 . . . 3 . . . . . . Heat Transferred 26334 | . 37 185 . 296 1436 148 645 . . 888 . . 137 2320 . . 37 . 9520 . 4400 3920 . . . 2106 . 259 . . . . Parts Sabotaged . | . . . . . . . . . . . . . . . . . . . . . . . . . . . . . . . . . Parts Stolen 6 | . . . . . . . . . . . . . . . . . . . 2 . . 2 . 2 . . . . . . . . Parts Stripped . | . . . . . . . . . . . . . . . . . . . . . . . . . . . . . . . . . Power Chain Reactions 4 | . . . . . 2 . 2 . . . . . . . . . . . . . . . . . . . . . . . . . Missiles Intercepted . | . . . . . . . . . . . . . . . . . . . . . . . . . . . . . . . . . Alert | -11 -10 -10 -10 -9 -8 -7 -7 -6 -6 -6 -6 -6 -5 -5 -5 -5 -5 -5 -4 -4 -4 -4 -4 -3 -3 -3 -3 -2 -2 -1 -1 -1 ------- Run | Scr Mat Min Exi Min Mat Fac Sto Fac Ext Cet Arc Hub Fac Was Fac Upp Upp War Pro Fac Upp Upp Zhi Pro Res Arm Lab Res Tes Acc Com Ac0 Peak Influence 1273 | 30 146 106 . 150 302 125 486 188 384 524 370 183 1273 488 939 . . . . 164 . . . . 247 434 . 399 562 387 505 . Average Influence 211 | 14 67 97 . 96 185 87 191 121 131 333 130 63 394 448 590 . . . . 143 . . . . 96 179 . 157 216 250 392 . Maximum Alert Level 4 | . . . . . 1 . 2 . 1 2 1 . 4 2 3 . . . . . . . . . 1 2 . 1 2 1 2 . Low Security (%) 58 | 100 100 100 . 100 59 100 50 100 76 . 77 100 51 . . . . . . 100 . . . . 79 67 . 50 43 23 1 . Level 1 25 | . . . . . 40 . 48 . 23 75 22 . . 9 35 . . . . . . . . . 20 18 . 49 44 76 18 . Level 2 12 | . . . . . . . 1 . . 24 . . 24 90 11 . . . . . . . . . . 14 . . 12 . 80 . Level 3 3 | . . . . . . . . . . . . . 11 . 53 . . . . . . . . . . . . . . . . . Level 4 1 | . . . . . . . . . . . . . 13 . . . . . . . . . . . . . . . . . . . Level 5 . | . . . . . . . . . . . . . . . . . . . . . . . . . . . . . . . . . High Security . | . . . . . . . . . . . . . . . . . . . . . . . . . . . . . . . . . Max Security . | . . . . . . . . . . . . . . . . . . . . . . . . . . . . . . . . . Squads Dispatched 63 | . 3 . . . 2 2 11 5 3 . . 4 11 . 2 . . . . . . . . . 4 4 . 4 7 1 . . Investigation 14 | . 3 . . . 1 . 1 . 1 . . 2 1 . 1 . . . . . . . . . 3 1 . . . . . . Extermination 9 | . . . . . . 1 2 . . . . 1 1 . . . . . . . . . . . . 3 . . 1 . . . Reinforcement 25 | . . . . . 1 1 2 5 2 . . 1 2 . 1 . . . . . . . . . 1 . . 4 5 . . . Assault 8 | . . . . . . . . . . . . . 6 . . . . . . . . . . . . . . . 1 1 . . Garrison 7 | . . . . . . . 6 . . . . . 1 . . . . . . . . . . . . . . . . . . . Intercept . | . . . . . . . . . . . . . . . . . . . . . . . . . . . . . . . . . Construction Impeded 5 | . . . . . . . 1 1 1 . . 1 . . 1 . . . . . . . . . . . . . . . . . Haulers Reinforced 4 | . . . . . . . 1 1 . . . . 1 . . . . . . . . . . . . . . 1 . . . . Stealth | -11 -10 -10 -10 -9 -8 -7 -7 -6 -6 -6 -6 -6 -5 -5 -5 -5 -5 -5 -4 -4 -4 -4 -4 -3 -3 -3 -3 -2 -2 -1 -1 -1 --------- Run | Scr Mat Min Exi Min Mat Fac Sto Fac Ext Cet Arc Hub Fac Was Fac Upp Upp War Pro Fac Upp Upp Zhi Pro Res Arm Lab Res Tes Acc Com Ac0 Distress Signals 54 | . . . . . 1 1 3 3 3 2 . . 2 . 1 . . . . . . . . . 3 2 . 6 2 2 23 . Communications Jammed . | . . . . . . . . . . . . . . . . . . . . . . . . . . . . . . . . . Distress Signals . | . . . . . . . . . . . . . . . . . . . . . . . . . . . . . . . . . Times Spotted 496 | . 2 2 . 6 21 3 41 10 21 17 19 7 36 5 14 5 13 15 22 1 9 17 . 12 26 36 . 15 23 16 18 64 Peak Tracking Total 15 | . 2 2 . 3 4 3 6 2 4 5 1 3 9 1 4 3 10 15 5 1 9 6 . 3 8 7 . 4 10 11 7 8 Tactical Retreats 31 | . . . . . 2 . 2 . 2 1 . 1 4 . . . . 1 1 . . 2 . . 1 2 . 1 3 4 1 3 Traps | -11 -10 -10 -10 -9 -8 -7 -7 -6 -6 -6 -6 -6 -5 -5 -5 -5 -5 -5 -4 -4 -4 -4 -4 -3 -3 -3 -3 -2 -2 -1 -1 -1 ------- Run | Scr Mat Min Exi Min Mat Fac Sto Fac Ext Cet Arc Hub Fac Was Fac Upp Upp War Pro Fac Upp Upp Zhi Pro Res Arm Lab Res Tes Acc Com Ac0 Traps Triggered 7 | . 1 . . . . . 1 . 2 . . . 2 . . . . . . . . . . . . . . . 1 . . . Indirectly . | . . . . . . . . . . . . . . . . . . . . . . . . . . . . . . . . . Trap Hack Attempts . | . . . . . . . . . . . . . . . . . . . . . . . . . . . . . . . . . Triggered . | . . . . . . . . . . . . . . . . . . . . . . . . . . . . . . . . . Disarmed . | . . . . . . . . . . . . . . . . . . . . . . . . . . . . . . . . . Reprogrammed 6 | . . . . . . . . . . . . . . . . . . . . . . . . . . 6 . . . . . . Reused 4 | . . . . . . . . . . . . . . . . . . . . . . . . . . 4 . . . . . . Traps Extracted . | . . . . . . . . . . . . . . . . . . . . . . . . . . . . . . . . . Installed . | . . . . . . . . . . . . . . . . . . . . . . . . . . . . . . . . . Triggered 10 | . . . . . . . . . 1 . . . . . . . . 3 . . . 2 . . . 4 . . . . . . Exploded 1 | . . . . . . . . . . . . . 1 . . . . . . . . . . . . . . . . . . . Machines | -11 -10 -10 -10 -9 -8 -7 -7 -6 -6 -6 -6 -6 -5 -5 -5 -5 -5 -5 -4 -4 -4 -4 -4 -3 -3 -3 -3 -2 -2 -1 -1 -1 ---------- Run | Scr Mat Min Exi Min Mat Fac Sto Fac Ext Cet Arc Hub Fac Was Fac Upp Upp War Pro Fac Upp Upp Zhi Pro Res Arm Lab Res Tes Acc Com Ac0 Machines Disabled 62 | . 1 . . . . . 2 . 3 1 4 . 5 . 12 . 5 1 . . . . . . . 3 2 3 9 1 1 9 Max in Single Turn 2 | . 1 . . . . . 1 . . . 1 . 2 . . . 2 1 . . . . . . . 1 1 1 1 1 1 1 Garrison Access 7 | . . . . . . . . . . . . . 2 . . . . . . . . . . . . . . 3 1 1 . . Network Hub 1 | . . . . . . . . . . . . 1 . . . . . . . . . . . . . . . . . . . . Machines Sabotaged 1 | . . . . . . . . . . . . 1 . . . . . . . . . . . . . . . . . . . . Garrisons Compromised . | . . . . . . . . . . . . . . . . . . . . . . . . . . . . . . . . . Overloaded Fab Kills . | . . . . . . . . . . . . . . . . . . . . . . . . . . . . . . . . . Fab Network Shutdowns 1 | . . . . . . . . . . . . . 1 . . . . . . . . . . . . . . . . . . . Hacking | -11 -10 -10 -10 -9 -8 -7 -7 -6 -6 -6 -6 -6 -5 -5 -5 -5 -5 -5 -4 -4 -4 -4 -4 -3 -3 -3 -3 -2 -2 -1 -1 -1 --------- Run | Scr Mat Min Exi Min Mat Fac Sto Fac Ext Cet Arc Hub Fac Was Fac Upp Upp War Pro Fac Upp Upp Zhi Pro Res Arm Lab Res Tes Acc Com Ac0 Machines Accessed 88 | . 4 . 2 . 5 4 12 1 9 2 . 5 9 . 2 . . 3 . 1 . . 4 . 4 7 . . 9 4 1 . Terminals 63 | . 3 . . . 4 2 12 1 8 2 . 5 4 . 1 . . . . 1 . . . . 4 6 . . 5 4 1 . Fabricators 5 | . . . . . . 1 . . . . . . 2 . . . . . . . . . . . . 1 . . 1 . . . Repair Stations . | . . . . . . . . . . . . . . . . . . . . . . . . . . . . . . . . . Recycling Units 4 | . 1 . . . 1 . . . 1 . . . 1 . . . . . . . . . . . . . . . . . . . Scanalyzers 5 | . . . . . . 1 . . . . . . 1 . 1 . . . . . . . . . . . . . 2 . . . Garrison Access 2 | . . . . . . . . . . . . . 1 . . . . . . . . . . . . . . . 1 . . . Total Hacks 375 | . 16 . 2 . 24 11 45 5 44 5 . 34 37 . 5 . . 9 . 4 . . 16 . 20 39 . . 32 20 7 . Successful 223 | . 12 . 2 . 12 8 28 2 19 3 . 18 19 . . . . 9 . 1 . . 16 . 10 25 . . 24 12 3 . Failed 151 | . 3 . . . 12 3 17 3 25 2 . 16 18 . 5 . . . . 3 . . . . 10 14 . . 8 8 4 . Catastrophic 28 | . . . . . . 3 2 . 2 2 . 1 5 . 1 . . . . 2 . . . . 3 5 . . 1 . 1 . Database Lockouts 1 | . 1 . . . . . . . . . . . . . . . . . . . . . . . . . . . . . . . Manual 181 | . 6 . 2 . 11 4 28 5 29 6 . 22 12 . . . . . . 3 . . . . 16 23 . . 5 4 5 . Terminals 299 | . 13 . . . 23 6 45 5 42 5 . 34 18 . 2 . . . . 4 . . . . 20 35 . . 20 20 7 . Fabricators 19 | . . . . . . 3 . . . . . . 9 . . . . . . . . . . . . 4 . . 3 . . . Repair Stations . | . . . . . . . . . . . . . . . . . . . . . . . . . . . . . . . . . Recycling Units 9 | . 3 . . . 1 . . . 2 . . . 3 . . . . . . . . . . . . . . . . . . . Scanalyzers 19 | . . . . . . 2 . . . . . . 6 . 3 . . . . . . . . . . . . . 8 . . . Garrison Access 2 | . . . . . . . . . . . . . 1 . . . . . . . . . . . . . . . 1 . . . Terminal Hacks 153 | . 8 . 2 . 8 2 19 2 17 2 . 10 7 . . . . 9 . 1 . . 16 . 8 15 . . 13 12 2 . Record 5 | . . . 1 . . . . . . . . . . . . . . . . . . . 4 . . . . . . . . . Part Schematic 12 | . . . . . 1 . . . 1 . . . 1 . . . . . . . . . 4 . 5 . . . . . . . Robot Analysis 13 | . 2 . . . . . . 2 1 . . . . . . . . . . . . . 4 . . 3 . . . 1 . . Prototype ID Bank 17 | . . . . . 2 . . . . . . 1 1 . . . . 7 . . . . 4 . . . . . 2 . . . Open Door 14 | . . . . . . . 4 . 6 . . . . . . . . 2 . . . . . . . 1 . . . . 1 . Level Access Points 4 | . 1 . . . . . . . . . . 1 . . . . . . . . . . . . 1 . . . . 1 . . Branch Access Points 3 | . 1 . . . . . . . . . . . . . . . . . . 1 . . . . . . . . . 1 . . Emergency Access Points 1 | . . . . . . . . . . . . 1 . . . . . . . . . . . . . . . . . . . . Machine Index 1 | . . . . . . . . . . . . . . . . . . . . . . . . . . . . . . 1 . . Terminal Index 7 | . 1 . . . 1 . 1 . 1 . . 1 . . . . . . . . . . . . . 1 . . . 1 . . Fabricator Index 1 | . . . . . . . . . . . . . . . . . . . . . . . . . . 1 . . . . . . Garrison Index 1 | . . . . . . . . . . . . . . . . . . . . . . . . . . . . . . 1 . . Alert Level 12 | . . . . . 1 . 2 . 2 1 . . . . . . . . . . . . . . 1 3 . . . 2 . . Unreport Threat 20 | . . . . . . . 3 . 2 1 . . 4 . . . . . . . . . . . . 4 . . 4 1 1 . Locate Traps 10 | . 1 . . . . 1 3 . 1 . . 1 1 . . . . . . . . . . . . 1 . . 1 . . . Reprogram Traps 1 | . . . . . . . . . . . . . . . . . . . . . . . . . . 1 . . . . . . Dispatch Records 4 | . . . . . 1 . 1 . 1 . . . . . . . . . . . . . . . . . . . 1 . . . Patrol Status 4 | . . . . . 1 . 1 . . . . 1 . . . . . . . . . . . . . . . . . 1 . . Transport Status 1 | . 1 . . . . . . . . . . . . . . . . . . . . . . . . . . . . . . . Recall Investigation 2 | . 1 . . . . . . . 1 . . . . . . . . . . . . . . . . . . . . . . . Recall Reinforcements 1 | . . . . . . . . . 1 . . . . . . . . . . . . . . . . . . . . . . . Hauler Manifests 2 | . . . . . . . . . . . . 1 . . . . . . . . . . . . . . . . 1 . . . Registered Components 5 | . . . . . 1 1 . . . . . 1 . . . . . . . . . . . . 1 . . . 1 . . . Registered Prototypes 2 | . . . . . . . . . . . . . . . . . . . . . . . . . . . . . 1 1 . . Zone Layout 8 | . . . . . . . 4 . . . . 2 . . . . . . . . . . . . . . . . 1 1 . . EX-Prototype ID Bank 1 | . . . 1 . . . . . . . . . . . . . . . . . . . . . . . . . . . . . Protovariant Controls 1 | . . . . . . . . . . . . . . . . . . . . . . . . . . . . . 1 . . . Fabricator Hacks 11 | . . . . . . 3 . . . . . . 4 . . . . . . . . . . . . 4 . . . . . . Load Schematic 5 | . . . . . . 1 . . . . . . 2 . . . . . . . . . . . . 2 . . . . . . Build 6 | . . . . . . 2 . . . . . . 2 . . . . . . . . . . . . 2 . . . . . . Repair Station Hacks . | . . . . . . . . . . . . . . . . . . . . . . . . . . . . . . . . . Recycling Unit Hacks 2 | . 2 . . . . . . . . . . . . . . . . . . . . . . . . . . . . . . . Report Inventory 2 | . 2 . . . . . . . . . . . . . . . . . . . . . . . . . . . . . . . Scanalyzer 10 | . . . . . . 2 . . . . . . 3 . . . . . . . . . . . . . . . 5 . . . Insert Component 7 | . . . . . . 1 . . . . . . 3 . . . . . . . . . . . . . . . 3 . . . Analyze 3 | . . . . . . 1 . . . . . . . . . . . . . . . . . . . . . . 2 . . . Garrison Access Hacks 2 | . . . . . . . . . . . . . 1 . . . . . . . . . . . . . . . 1 . . . Seal Access 2 | . . . . . . . . . . . . . 1 . . . . . . . . . . . . . . . 1 . . . Unauthorized Hacks 116 | . 5 . . . 13 2 22 . 6 2 . 22 12 . . . . . . . . . . . 5 12 . . 10 1 4 . Terminals 36 | . 1 . . . 3 1 9 . 2 1 . 8 1 . . . . . . . . . . . 2 6 . . 1 . 1 . Track 18 | . 1 . . . . . 6 . . 1 . 4 . . . . . . . . . . . . 2 2 . . 1 . 1 . Assimilate 1 | . . . . . . . . . . . . . . . . . . . . . . . . . . 1 . . . . . . Botnet 11 | . . . . . 2 1 2 . 2 . . 1 1 . . . . . . . . . . . . 2 . . . . . . Disrupt 2 | . . . . . . . 1 . . . . . . . . . . . . . . . . . . 1 . . . . . . Operators 2 | . . . . . 1 . . . . . . 1 . . . . . . . . . . . . . . . . . . . . Sabotage 2 | . . . . . . . . . . . . 2 . . . . . . . . . . . . . . . . . . . . Fabricators 5 | . . . . . . . . . . . . . 2 . . . . . . . . . . . . . . . 3 . . . Report 1 | . . . . . . . . . . . . . . . . . . . . . . . . . . . . . 1 . . . Prioritize 2 | . . . . . . . . . . . . . 2 . . . . . . . . . . . . . . . . . . . Siphon 1 | . . . . . . . . . . . . . . . . . . . . . . . . . . . . . 1 . . . Haulers 1 | . . . . . . . . . . . . . . . . . . . . . . . . . . . . . 1 . . . Repair Stations . | . . . . . . . . . . . . . . . . . . . . . . . . . . . . . . . . . Recycling Units 3 | . 1 . . . 1 . . . . . . . 1 . . . . . . . . . . . . . . . . . . . Tunnel 3 | . 1 . . . 1 . . . . . . . 1 . . . . . . . . . . . . . . . . . . . Scanalyzers 1 | . . . . . . . . . . . . . . . . . . . . . . . . . . . . . 1 . . . Researchers 1 | . . . . . . . . . . . . . . . . . . . . . . . . . . . . . 1 . . . Garrison Access . | . . . . . . . . . . . . . . . . . . . . . . . . . . . . . . . . . Data Cores Recovered 2 | . . . . . . . . . 1 . . . . . . . . . . . . . . . . 1 . . . . . . Used . | . . . . . . . . . . . . . . . . . . . . . . . . . . . . . . . . . Hacking Detections 69 | . 3 . . . 4 4 12 1 9 2 . 4 8 . 2 . . . . 1 . . . . 4 5 . . 6 3 1 . Full Trace Events 6 | . . . . . . . 1 . 1 . . . . . . . . . . . . . . . 3 1 . . . . . . Feedback Events . | . . . . . . . . . . . . . . . . . . . . . . . . . . . . . . . . . Feedback Blocked . | . . . . . . . . . . . . . . . . . . . . . . . . . . . . . . . . . Robot Schematics Acquired . | . . . . . . . . . . . . . . . . . . . . . . . . . . . . . . . . . Robots Built . | . . . . . . . . . . . . . . . . . . . . . . . . . . . . . . . . . Matter . | . . . . . . . . . . . . . . . . . . . . . . . . . . . . . . . . . Time . | . . . . . . . . . . . . . . . . . . . . . . . . . . . . . . . . . Total Robot Build Rating . | . . . . . . . . . . . . . . . . . . . . . . . . . . . . . . . . . Part Schematics Acquired 14 | . . . . . 1 1 . . 1 . . . 1 . . . . . . . . . 4 . 4 . . . 2 . . . Parts Built 6 | . . . . . . 2 . . . . . . 2 . . . . . . . . . . . . 2 . . . . . . Matter 1044 | . . . . . . 204 . . . . . . 270 . . . . . . . . . . . . 570 . . . . . . Time 313 | . . . . . . 102 . . . . . . 59 . . . . . . . . . . . . 152 . . . . . . Total Part Build Rating 17 | . . . . . . 2 . . . . . . 5 . . . . . . . . . . . . 10 . . . . . . Parts Repaired . | . . . . . . . . . . . . . . . . . . . . . . . . . . . . . . . . . Time . | . . . . . . . . . . . . . . . . . . . . . . . . . . . . . . . . . Parts Recycled . | . . . . . . . . . . . . . . . . . . . . . . . . . . . . . . . . . Recycled Matter . | . . . . . . . . . . . . . . . . . . . . . . . . . . . . . . . . . Retrieved Matter . | . . . . . . . . . . . . . . . . . . . . . . . . . . . . . . . . . Retrieved Components . | . . . . . . . . . . . . . . . . . . . . . . . . . . . . . . . . . Parts Scanalyzed 4 | . . . . . . 1 . . . . . . 1 . . . . . . . . . . . . . . . 2 . . . Part Schematics Acquired 3 | . . . . . . 1 . . . . . . . . . . . . . . . . . . . . . . 2 . . . Parts Damaged . | . . . . . . . . . . . . . . . . . . . . . . . . . . . . . . . . . Bothacking | -11 -10 -10 -10 -9 -8 -7 -7 -6 -6 -6 -6 -6 -5 -5 -5 -5 -5 -5 -4 -4 -4 -4 -4 -3 -3 -3 -3 -2 -2 -1 -1 -1 ------------ Run | Scr Mat Min Exi Min Mat Fac Sto Fac Ext Cet Arc Hub Fac Was Fac Upp Upp War Pro Fac Upp Upp Zhi Pro Res Arm Lab Res Tes Acc Com Ac0 Used RIF Installer . | . . . . . . . . . . . . . . . . . . . . . . . . . . . . . . . . . Robots Hacked 1 | . . . . . . . . . . . . . 1 . . . . . . . . . . . . . . . . . . . Non-combat 1 | . . . . . . . . . . . . . 1 . . . . . . . . . . . . . . . . . . . Combat . | . . . . . . . . . . . . . . . . . . . . . . . . . . . . . . . . . Robot Hacks Applied 1 | . . . . . . . . . . . . . 1 . . . . . . . . . . . . . . . . . . . find_chute 1 | . . . . . . . . . . . . . 1 . . . . . . . . . . . . . . . . . . . Relay Couplers Released 16 | . . . . . . . . . . . . . 3 . . . . . . . . . . . 3 . . 7 . 3 . . Machine Destruction 9 | . . . . . . . . . . . . . 3 . . . . . . . . . . . . . . 3 . 3 . . Programmers 7 | . . . . . . . . . . . . . . . . . . . . . . . . . 3 . . 4 . . . . Robots Rewired 15 | . . . . . . . . . 15 . . . . . . . . . . . . . . . . . . . . . . . Allies Hacked . | . . . . . . . . . . . . . . . . . . . . . . . . . . . . . . . . . Hacks Repelled . | . . . . . . . . . . . . . . . . . . . . . . . . . . . . . . . . . Allies | -11 -10 -10 -10 -9 -8 -7 -7 -6 -6 -6 -6 -6 -5 -5 -5 -5 -5 -5 -4 -4 -4 -4 -4 -3 -3 -3 -3 -2 -2 -1 -1 -1 -------- Run | Scr Mat Min Exi Min Mat Fac Sto Fac Ext Cet Arc Hub Fac Was Fac Upp Upp War Pro Fac Upp Upp Zhi Pro Res Arm Lab Res Tes Acc Com Ac0 Total Allies 59 | . . . . . . . 10 . 21 5 . . . 20 . . . . . . . . . . 3 . . . . . . . Largest Group 19 | . . . . . . . 10 9 12 10 3 . . 19 17 13 11 7 . . . . . . 3 . . . . . . . Highest-Rated Group 714 | . . . . . . . 173 157 452 580 282 . . 714 664 564 472 301 . . . . . . 138 . . . . . . . Highest-Rated Ally 156 | . . . . . . . 29 29 156 149 94 . . 50 50 50 50 50 . . . . . . 46 . . . . . . . Total Orders 51 | . . . . . . . 3 5 . 11 2 . . 5 4 4 2 10 3 . . . . 2 . . . . . . . . STAY 11 | . . . . . . . 1 1 . 1 . . . . . 1 1 4 1 . . . . 1 . . . . . . . . GOTO 15 | . . . . . . . . . . 7 1 . . 4 . . . 2 . . . . . 1 . . . . . . . . ROAM 1 | . . . . . . . . . . . 1 . . . . . . . . . . . . . . . . . . . . . FOLLOW 11 | . . . . . . . 2 1 . 3 . . . 1 . 2 1 1 . . . . . . . . . . . . . . EXPLORE 7 | . . . . . . . . 3 . . . . . . 2 . . 1 1 . . . . . . . . . . . . . RETURN 6 | . . . . . . . . . . . . . . . 2 1 . 2 1 . . . . . . . . . . . . . Ally Attacks 626 | . . . . . . . 26 70 183 102 26 . 8 62 89 13 17 . . . . . . . 10 20 . . . . . . Total Damage 17495 | . . . . . . . 343 963 4764 1884 1115 . 435 1776 2720 387 1771 . . . . . . . 287 1050 . . . . . . Kills 98 | . . . . . . . 4 6 26 12 3 . 3 4 18 2 12 . . . . . . . . 8 . . . . . . Allies Corrupted 11 | . . . . . . . . 2 . . . . 1 . . . . 8 . . . . . . . . . . . . . . Allies Melted 2 | . . . . . . . . . . . . . . . . . . 2 . . . . . . . . . . . . . . Turrets Deployed 3 | . . . . . . . . . . . . . 1 . . . . 1 . . . . . . . 1 . . . . . . Intel | -11 -10 -10 -10 -9 -8 -7 -7 -6 -6 -6 -6 -6 -5 -5 -5 -5 -5 -5 -4 -4 -4 -4 -4 -3 -3 -3 -3 -2 -2 -1 -1 -1 ------- Run | Scr Mat Min Exi Min Mat Fac Sto Fac Ext Cet Arc Hub Fac Was Fac Upp Upp War Pro Fac Upp Upp Zhi Pro Res Arm Lab Res Tes Acc Com Ac0 Robot Analysis Total 13 | . 2 . . . . . . 2 1 . . . . . . . . . . . . . 4 . . 3 . . . 1 . . Derelict Logs Recovered 7 | . . 1 . 1 . . . . . . . . . . . 1 . . 1 . 1 2 . . . . . . . . . . Drone Launches 20 | . . . . . . . 14 . . . . . 2 . . . 2 . . . . . . 2 . . . . . . . . Drone Recoveries . | . . . . . . . . . . . . . . . . . . . . . . . . . . . . . . . . . Exploration | -11 -10 -10 -10 -9 -8 -7 -7 -6 -6 -6 -6 -6 -5 -5 -5 -5 -5 -5 -4 -4 -4 -4 -4 -3 -3 -3 -3 -2 -2 -1 -1 -1 ------------- Run | Scr Mat Min Exi Min Mat Fac Sto Fac Ext Cet Arc Hub Fac Was Fac Upp Upp War Pro Fac Upp Upp Zhi Pro Res Arm Lab Res Tes Acc Com Ac0 Turns Passed 23734 | 129 197 104 924 299 949 420 1632 395 1588 422 1677 436 1582 442 628 596 299 781 773 167 329 464 253 473 765 1003 1720 974 633 310 990 1380 Spaces Moved 12828 | 65 205 43 466 119 423 204 661 155 738 135 205 205 477 207 340 307 155 385 349 81 168 214 136 219 197 320 219 1529 795 493 623 1990 Core 300 | 34 177 . . . . . . . . . 40 . . . . . . . . . . . . . . . 48 . . . 1 . Treads 6642 | 31 28 43 466 119 366 204 399 155 738 135 165 205 477 207 340 307 155 385 349 81 168 214 136 219 116 320 114 . . . . . Legs . | . . . . . . . . . . . . . . . . . . . . . . . . . . . . . . . . . Wheels 400 | . . . . . 57 . 262 . . . . . . . . . . . . . . . . . 81 . . . . . . . Hover 5486 | . . . . . . . . . . . . . . . . . . . . . . . . . . . 57 1529 795 493 622 1990 Flight . | . . . . . . . . . . . . . . . . . . . . . . . . . . . . . . . . . Fastest Speed 24 | 50 50 160 160 200 120 180 130 185 180 160 160 160 160 180 180 180 180 180 180 180 180 180 180 180 180 165 148 40 40 40 33 24 Average Speed 136 | 102 65 160 193 200 171 180 169 185 184 164 738 160 164 180 180 180 180 180 180 180 180 180 180 180 180 174 766 40 40 40 48 35 Slowest Speed 3100 | 160 160 160 200 200 180 180 210 185 185 200 3100 160 180 180 180 180 180 180 180 180 180 180 180 180 220 202 2900 40 144 40 3100 40 Overloaded Moves 760 | . . . . . . . . . . . . . . . . . . . . . . . . . . . . . . . 21 739 Propulsion Burnouts . | . . . . . . . . . . . . . . . . . . . . . . . . . . . . . . . . . Robots Hopped . | . . . . . . . . . . . . . . . . . . . . . . . . . . . . . . . . . Cave-ins Triggered . | . . . . . . . . . . . . . . . . . . . . . . . . . . . . . . . . . Teleports 3 | . . . . . . . . . . . . . . . . . . . . . . . . . . 1 . . . . 1 1 Exploration Rate (%) 45 | 4 38 14 69 26 48 6 82 16 86 69 87 27 17 84 21 50 39 94 61 5 37 54 61 51 7 21 97 38 85 19 26 75 Regions Visited 32 Branch Regions 21 Pre-discovered Areas 7 | . 1 . 1 . 1 . . . . . . . 1 . . . . . . . . 1 2 . . . . . . . . . Known Exits Taken 14 | . 1 . . . 1 1 . . . . 1 1 . . 1 1 1 . . 1 . . . . . 1 1 1 1 1 . . Unknown Exits Taken 16 | 1 . 1 1 1 . . 1 1 1 1 . . . . . . . 1 1 . 1 1 1 1 1 . . . . . 1 . Scrap Searched 8 | . . . . 1 . . . . . . . . . . . 1 1 . 1 . 1 . . 3 . . . . . . . . Spaces Dug 409 | . 2 . . . 15 3 23 2 3 2 . 18 48 . 2 12 8 10 . 6 . 40 . 50 13 26 . 42 31 31 7 15 Terrain Destroyed 877 | . 4 . . . 36 3 23 2 4 2 15 18 111 7 2 33 10 14 120 6 22 108 . 120 13 77 . 43 31 31 7 15 Melee 281 | . . . . . 11 3 20 2 3 2 . 18 34 . 2 12 3 9 . 6 . . . . 13 18 . 41 31 31 7 15 Projectile 55 | . 4 . . . 4 . . . 1 . 15 . 4 1 . . . 5 . . . 5 . 4 . 10 . 2 . . . . AOE 541 | . . . . . 21 . 3 . . . . . 73 6 . 21 7 . 120 . 22 103 . 116 . 49 . . . . . . Actions | -11 -10 -10 -10 -9 -8 -7 -7 -6 -6 -6 -6 -6 -5 -5 -5 -5 -5 -5 -4 -4 -4 -4 -4 -3 -3 -3 -3 -2 -2 -1 -1 -1 --------- Run | Scr Mat Min Exi Min Mat Fac Sto Fac Ext Cet Arc Hub Fac Was Fac Upp Upp War Pro Fac Upp Upp Zhi Pro Res Arm Lab Res Tes Acc Com Ac0 Total 17468 | 97 248 65 491 159 567 240 956 204 910 265 305 266 1119 276 348 328 168 452 455 91 186 271 145 284 556 609 250 1781 1012 562 1260 2542 Wait 2011 | . 16 11 . 7 29 9 32 4 13 59 39 8 437 44 . 4 . 8 43 . 6 25 . 27 286 69 . 88 109 14 467 157 Move 12797 | 64 204 42 465 118 422 203 660 154 737 134 204 204 477 206 339 306 154 384 348 80 167 213 135 218 197 319 218 1528 794 492 622 1989 Hop . | . . . . . . . . . . . . . . . . . . . . . . . . . . . . . . . . . Pick Up 283 | 4 2 . 17 5 18 7 29 3 12 7 8 7 18 4 1 . 3 10 9 . . 1 3 5 5 27 4 29 10 2 12 21 Fast Attach 98 | 8 1 1 1 . 3 . 10 . 1 3 2 . 2 . . . . 3 . . . . 3 . 3 8 4 15 4 . 4 22 Attach 184 | 1 4 . 3 3 7 2 12 6 4 1 1 3 13 4 . 1 1 6 6 1 1 3 1 4 8 22 6 9 3 2 17 29 Detach 84 | 2 4 . 3 1 3 . 6 . . 1 2 . 6 4 1 1 1 6 . . . . 3 2 4 6 2 6 1 . 10 9 Swap 222 | . 7 2 . 1 20 7 27 5 11 6 9 8 35 1 . . 1 3 1 3 2 3 . 1 3 11 . 6 13 3 12 21 Drop 252 | 1 2 1 2 4 13 2 32 1 9 4 8 5 16 5 . . 1 12 6 . 1 1 . 2 5 22 7 32 12 . 16 30 Fire 605 | 17 8 7 . 20 35 4 96 26 18 37 30 2 63 8 1 2 3 6 38 . 8 25 . 24 18 83 . 9 17 . . . Melee 809 | . . . . . 13 5 41 4 20 13 1 29 46 . 4 14 3 14 . 6 . . . . 27 39 9 59 49 49 100 264 Ram . | . . . . . . . . . . . . . . . . . . . . . . . . . . . . . . . . . Kick . | . . . . . . . . . . . . . . . . . . . . . . . . . . . . . . . . . Crush 31 | . . 1 . . 4 1 4 1 3 . 1 . 5 . 2 . . . 4 1 1 . . . . 3 . . . . . . Escape Stasis 4 | . . . . . . . . . 4 . . . . . . . . . . . . . . . . . . . . . . . Rewire 78 | . . . . . . . . . 78 . . . . . . . . . . . . . . . . . . . . . . . Trap . | . . . . . . . . . . . . . . . . . . . . . . . . . . . . . . . . . Miscellaneous 10 | . . . . . . . 7 . . . . . 1 . . . 1 . . . . . . 1 . . . . . . . . Route ------- -11/Scrapyard -10/Materials (discovered 5 exits: *Mat x3 / *Min x2) -10/Mines -10/Exiles -9/Mines -8/Materials (discovered 3 exits: *Fac x3) -7/Factory -7/Storage -6/Factory -6/Extension (discovered 2 exits: *Fac / *Cet) -6/Cetus (discovered 2 exits: *Fac / [*Arc]) -6/Archives (discovered 3 exits: *Fac / *Hub x2) -6/Hub_04(d) (discovered 4 exits: *Fac x4) -5/Factory -5/Waste -5/Factory -5/Upper Caves -5/Upper Caves -5/Warlord -4/Proximity Caves -4/Factory (discovered 2 exits: *Upp x2) -4/Upper Caves -4/Upper Caves -4/Zhirov -3/Proximity Caves -3/Research (discovered 5 exits: *Res x3 / *Arm / Qua) -3/Armory (discovered 2 exits: *Res / *Lab) -3/Lab -2/Research (discovered 2 exits: *Tes x2) -2/Testing -1/Access (discovered 2 exits: Sur / *Com) -1/Command (discovered 2 exits: *Sur / [*Ac0]) -1/Access_0 0b11 Command History --------- Turn | Location | Event 2 | -11/Scrapyard | Discovered new exit (range 16) 130 | -11/Scrapyard | Entered Materials 140 | -10/Materials | Central database locked down 184 | -10/Materials | Identified exit to Mines 214 | -10/Materials | Discovered new exit (range 9) 250 | -10/Materials | Identified exit to Materials 321 | -10/Materials | Build established: Mutant 327 | -10/Materials | Entered Mines 328 | -10/Mines | Assembled infested the area 347 | -10/Mines | Met a Derelict bent on vengeance 425 | -10/Mines | Deemed a non-threat by the Exiles lab entrance 425 | -10/Mines | Discovered new exit (range 5) 431 | -10/Mines | Entered Exiles 474 | -10/Exiles | Met 8R-AWN 498 | -10/Exiles | Met EX-HEX 822 | -10/Exiles | Met EX-DEC 856 | -10/Exiles | Learned location of Zion (-7) 863 | -10/Exiles | Build established: Hauler-Mutant 1053 | -10/Exiles | Met EX-BIN 1083 | -10/Exiles | Aligned with FarCom system 1085 | -10/Exiles | Given EX-Vault access code 1131 | -10/Exiles | Opened EX-Vault 1141 | -10/Exiles | Found Firepult 1144 | -10/Exiles | Found Deploy-a-Sentry 1147 | -10/Exiles | Found Deploy-a-Sentry 1150 | -10/Exiles | Found Deploy-a-Sentry 1153 | -10/Exiles | Found PSU Rigger 1198 | -10/Exiles | Warned to stay clear of 0b10 Research branches 1326 | -10/Exiles | Discovered new exit (range 15) 1355 | -10/Exiles | Stole three prototypes: PSU Rigger, Firepult, Deploy-a-Sentry 1355 | -10/Exiles | Entered Mines 1411 | -9/Mines | Learned 4 Materials zone layouts 1577 | -9/Mines | Discovered new exit (range 3) 1654 | -9/Mines | Entered Materials 1654 | -8/Materials | Evolved 4 slots: Propulsion x2, Utility x2 1655 | -8/Materials | Identified exit to Factory 2221 | -8/Materials | Discovered exit to Factory (range 16) 2576 | -8/Materials | Discovered exit to Factory (range 5) 2603 | -8/Materials | Entered Factory 2603 | -7/Factory | Evolved 2 slots: Utility x2 2604 | -7/Factory | Identified exit to Storage 2605 | -7/Factory | FarCom data flow suspended 2893 | -7/Factory | Fabricated Humpback? 2969 | -7/Factory | Fabricated Humpback (x1) 3023 | -7/Factory | Entered Storage 3973 | -7/Storage | Found Prototype Protection 3973 | -7/Storage | Identified Lgt. Regenerative Plating 4023 | -7/Storage | Garrison activated, responded to threat 4219 | -7/Storage | Assisted by bots powering up and referring to "LRC-V3" 4248 | -7/Storage | Discovered new exit (range 15) 4376 | -7/Storage | Found Prototype Processor 4434 | -7/Storage | Garrison activated, responded to threat 4534 | -7/Storage | Build established: Commander-Mutant 4655 | -7/Storage | Entered Factory 4655 | -6/Factory | Accompanied by 20 allies 4655 | -6/Factory | Evolved 2 slots: Utility x2 4695 | -6/Factory | Discovered new exit (range 68) 5008 | -6/Factory | Lost 3 parts (1p2w) 5050 | -6/Factory | Entered Extension 5154 | -6/Extension | Build established: Hauler-Mutant 5208 | -6/Extension | Rescued A7 5492 | -6/Extension | Build established: Hacker-Mutant 5595 | -6/Extension | Spotted B-75 Beast 5619 | -6/Extension | Allies destroyed B-75 Beast 5631 | -6/Extension | Spotted B-75 Beast 5671 | -6/Extension | Allies destroyed B-75 Beast 5718 | -6/Extension | Rescued a captive Derelict 5724 | -6/Extension | Rescued a captive Derelict 5740 | -6/Extension | Rescued a captive Derelict 5743 | -6/Extension | Rescued a captive Derelict 5783 | -6/Extension | Rescued a captive Derelict 6150 | -6/Extension | Disrupted transfer network 6314 | -6/Extension | Rescued a captive Derelict 6314 | -6/Extension | Rescued a captive Derelict 6418 | -6/Extension | Rescued a captive Derelict 6419 | -6/Extension | Rescued a captive Derelict 6593 | -6/Extension | Discovered new exit (range 10) 6595 | -6/Extension | Discovered new exit (range 6) 6638 | -6/Extension | Entered Cetus 6638 | -6/Cetus | Accompanied by 10 allies 6643 | -6/Cetus | Acquired a Cetus Manufacturing Module code from A7 6671 | -6/Cetus | Spotted Cetus Guard 6672 | -6/Cetus | Spotted Cetus Guard 6673 | -6/Cetus | Spotted Cetus Guard 6690 | -6/Cetus | Allies destroyed Cetus Guard 6690 | -6/Cetus | Spotted Cetus Guard 6700 | -6/Cetus | Allies destroyed Cetus Guard 6706 | -6/Cetus | Destroyed Cetus Guard 6719 | -6/Cetus | Extracted ID and sensor layout for unrecognized location from A7's data core 6732 | -6/Cetus | Allies destroyed Cetus Guard 6881 | -6/Cetus | Started Cetus Manufacturing Module 6895 | -6/Cetus | Discovered new exit (range 21) 6906 | -6/Cetus | Manufactured an Enhanced Grunt 6931 | -6/Cetus | Manufactured an Enhanced Grunt 6956 | -6/Cetus | Manufactured an Enhanced Grunt 6976 | -6/Cetus | Spotted Cetus Guard 6978 | -6/Cetus | Spotted Cetus Guard 6979 | -6/Cetus | Spotted Cetus Guard 6979 | -6/Cetus | Spotted Cetus Guard 6981 | -6/Cetus | Manufactured an Enhanced Grunt 6982 | -6/Cetus | Discovered new exit (range 22) 7004 | -6/Cetus | Destroyed Cetus Guard 7006 | -6/Cetus | Manufactured an Enhanced Grunt 7007 | -6/Cetus | Destroyed Cetus Guard 7010 | -6/Cetus | Allies destroyed Cetus Guard 7016 | -6/Cetus | Allies destroyed Cetus Guard 7060 | -6/Cetus | Entered Archives 7060 | -6/Archives | Accompanied by 3 allies 7105 | -6/Archives | Discovered new exit (range 21) 7217 | -6/Archives | Discovered new exit (range 22) 7228 | -6/Archives | Discovered new exit (range 21) 7333 | -6/Archives | Build established: Hauler-Mutant 8735 | -6/Archives | Identified exit to Hub_04(d) 8737 | -6/Archives | Entered Hub_04(d) 8850 | -6/Hub_04(d) | Identified exit to Factory 9155 | -6/Hub_04(d) | Network Hub disabled 9173 | -6/Hub_04(d) | Entered Factory 9173 | -5/Factory | Evolved 2 slots: Utility x2 9385 | -5/Factory | Fabricated Humpback (x1) 9418 | -5/Factory | Build established: Hacker-Mutant 9829 | -5/Factory | Build established: Hauler-Mutant 9975 | -5/Factory | Local fabrication network quarantined 9986 | -5/Factory | Fabricated Enh. Optical Array (x1) 10073 | -5/Factory | First assault squad dispatched 10158 | -5/Factory | DAS Turret deployed 10582 | -5/Factory | Destroyed 8 combat bots 10755 | -5/Factory | Sucked down chute 10755 | -5/Factory | Entered Waste 10755 | -5/Waste | Met up with 1 ally sucked down the chute earlier 10756 | -5/Waste | Met a frightened Derelict 10770 | -5/Waste | 1 allies followed down the chute 10779 | -5/Waste | Spotted C-40 Crusher 10782 | -5/Waste | Destroyed C-40 Crusher 10799 | -5/Waste | Spotted C-40 Crusher 10802 | -5/Waste | Destroyed C-40 Crusher 10824 | -5/Waste | Spotted C-40 Crusher 10827 | -5/Waste | Found Damper Plating 10838 | -5/Waste | Destroyed C-40 Crusher 10853 | -5/Waste | Found Damper Plating 10890 | -5/Waste | Warlord forces began an assault 10902 | -5/Waste | Spotted C-40 Crusher 10905 | -5/Waste | Allies destroyed C-40 Crusher 10927 | -5/Waste | Spotted C-40 Crusher 10935 | -5/Waste | Allies destroyed C-40 Crusher 10942 | -5/Waste | Spotted C-40 Crusher 10945 | -5/Waste | Destroyed C-40 Crusher 11053 | -5/Waste | Build established: Hauler-Skirmisher 11081 | -5/Waste | Discovered new exit (range 13) 11166 | -5/Waste | Identified exit to Factory 11197 | -5/Waste | Entered Factory 11197 | -5/Factory | Accompanied by 19 allies 11502 | -5/Factory | Build established: Hauler-Assassin 11770 | -5/Factory | Discovered new exit (range 16) 11812 | -5/Factory | Identified exit to Upper Caves 11825 | -5/Factory | Entered Upper Caves 11825 | -5/Upper Caves | Accompanied by 14 allies 11946 | -5/Upper Caves | Learned Factory stockpile data 12027 | -5/Upper Caves | Spotted PD-108(f) 12028 | -5/Upper Caves | Encountered a Master Thief 12033 | -5/Upper Caves | Destroyed PD-108(f) 12186 | -5/Upper Caves | Encountered a Warlord checkpoint 12397 | -5/Upper Caves | Discovered new exit (range 12) 12417 | -5/Upper Caves | Identified exit to Upper Caves 12421 | -5/Upper Caves | Spotted VL-SEF(f) 12421 | -5/Upper Caves | Entered another Upper Caves area 12421 | -5/Upper Caves | Accompanied by 12 allies 12521 | -5/Upper Caves | Attracted the attention of an 0b10 base 12703 | -5/Upper Caves | Discovered new exit (range 9) 12716 | -5/Upper Caves | Identified exit to Warlord 12720 | -5/Upper Caves | Entered Warlord 12720 | -5/Warlord | Accompanied by 10 allies 12778 | -5/Warlord | System corruption cleaned by Quarantine Array 12852 | -5/Warlord | DAS Turret deployed 12986 | -5/Warlord | Visited the Vortex Lab 12997 | -5/Warlord | Warlord's base attacked by MAIN.C 12997 | -5/Warlord | Found Prototype Energy Cannon 12997 | -5/Warlord | Identified Vortex Cannon 13002 | -5/Warlord | Found Vortex Cannon 13005 | -5/Warlord | Found Vortex Cannon 13008 | -5/Warlord | Found Vortex Cannon 13068 | -5/Warlord | Met Warlord 13079 | -5/Warlord | Found Prototype Device 13079 | -5/Warlord | Identified Thermal Barrier 13085 | -5/Warlord | Found Prototype Processor 13100 | -5/Warlord | Found Prototype Reactor 13332 | -5/Warlord | Spotted B-86 Titan 13332 | -5/Warlord | Spotted Striker 13334 | -5/Warlord | Spotted Executioner 13347 | -5/Warlord | Warlord forces counterattacked 13389 | -5/Warlord | Identified Exp. Targeting Computer 13410 | -5/Warlord | Build established: Hauler-Mutant 13436 | -5/Warlord | Spotted Striker 13452 | -5/Warlord | Opened side exit 13488 | -5/Warlord | Discovered new exit (range 9) 13501 | -5/Warlord | Entered Proximity Caves 13501 | -4/Proximity Caves | Accompanied by 1 ally 13536 | -4/Proximity Caves | Spotted B-86 Titan 13552 | -4/Proximity Caves | Destroyed B-86 Titan 13664 | -4/Proximity Caves | Attracted the attention of an 0b10 checkpoint 13744 | -4/Proximity Caves | Learned Research non-interactive machine intel 13848 | -4/Proximity Caves | Spotted OP-BQ8(f) 13849 | -4/Proximity Caves | Encountered a Master Thief 13849 | -4/Proximity Caves | Spotted A1-S6N(f) 13850 | -4/Proximity Caves | Encountered a Master Thief 13850 | -4/Proximity Caves | Deploy-a-Sentry stolen by Master Thief 13851 | -4/Proximity Caves | Destroyed OP-BQ8(f) 13854 | -4/Proximity Caves | Destroyed A1-S6N(f) 13902 | -4/Proximity Caves | Spotted 2Z-CU8(f) 13903 | -4/Proximity Caves | Encountered a Master Thief 13904 | -4/Proximity Caves | Spotted TI-LHD(f) 13905 | -4/Proximity Caves | Encountered a Master Thief 13905 | -4/Proximity Caves | PSU Rigger stolen by Master Thief 13906 | -4/Proximity Caves | Destroyed TI-LHD(f) 14259 | -4/Proximity Caves | Discovered new exit (range 6) 14274 | -4/Proximity Caves | Entered Factory 14274 | -4/Factory | Evolved 2 slots: Power x1, Weapon x1 14330 | -4/Factory | Identified exit to Upper Caves 14441 | -4/Factory | Entered Upper Caves 14531 | -4/Upper Caves | Learned location of 1 exit from Research 14534 | -4/Upper Caves | Attracted the attention of an 0b10 outpost 14559 | -4/Upper Caves | Identified Vortex Chain Reactor 14570 | -4/Upper Caves | Destroyed 9 combat bots 14758 | -4/Upper Caves | Discovered new exit (range 8) 14770 | -4/Upper Caves | Entered another Upper Caves area 14927 | -4/Upper Caves | Spotted 32-1Q6(f) 14929 | -4/Upper Caves | Encountered a Master Thief 14931 | -4/Upper Caves | Spotted 2L-MKH(f) 14931 | -4/Upper Caves | Deploy-a-Sentry stolen by Master Thief 14932 | -4/Upper Caves | Destroyed 32-1Q6(f) 14932 | -4/Upper Caves | Encountered a Master Thief 14934 | -4/Upper Caves | Firepult stolen by Master Thief 15088 | -4/Upper Caves | Spotted Z1-6TC(f) 15089 | -4/Upper Caves | Encountered a Master Thief 15167 | -4/Upper Caves | Attracted the attention of an 0b10 checkpoint 15197 | -4/Upper Caves | Discovered new exit (range 7) 15211 | -4/Upper Caves | Learned Research terminal intel 15234 | -4/Upper Caves | Entered Zhirov 15234 | -4/Zhirov | Discovered new exit (range 3) 15267 | -4/Zhirov | Met Zhirov 15299 | -4/Zhirov | Learned location of Quarantine (-3) 15315 | -4/Zhirov | Zhirov requested help retrieving the SGEMP Prototype 15343 | -4/Zhirov | Found Alien Artifact 15343 | -4/Zhirov | Identified Integrated Reactor 15343 | -4/Zhirov | Installed Integrated Reactor, increased core energy generation (+2%) 15364 | -4/Zhirov | Found Alien Artifact 15487 | -4/Zhirov | Entered Proximity Caves 15688 | -3/Proximity Caves | Spotted TV-0RA(f) 15688 | -3/Proximity Caves | Spotted 60-2SA(f) 15689 | -3/Proximity Caves | Encountered a Master Thief 15691 | -3/Proximity Caves | Encountered a Master Thief 15694 | -3/Proximity Caves | PSU Rigger stolen by Master Thief 15695 | -3/Proximity Caves | Destroyed TV-0RA(f) 15695 | -3/Proximity Caves | Destroyed 60-2SA(f) 15799 | -3/Proximity Caves | Spotted CW-7UK(f) 15800 | -3/Proximity Caves | Encountered a Master Thief 15802 | -3/Proximity Caves | Spotted 23-2BG(f) 15802 | -3/Proximity Caves | PSU Rigger stolen by Master Thief 15803 | -3/Proximity Caves | Encountered a Master Thief 15804 | -3/Proximity Caves | Destroyed 23-2BG(f) 15806 | -3/Proximity Caves | Destroyed CW-7UK(f) 15827 | -3/Proximity Caves | Destroyed 7 combat bots 15946 | -3/Proximity Caves | Discovered new exit (range 5) 15960 | -3/Proximity Caves | Entered Research 15960 | -3/Research | Evolved 2 slots: Utility x1, Weapon x1 15961 | -3/Research | Identified exit to Quarantine 15962 | -3/Research | Loaded intel: 85 non-interactive machine locations 15963 | -3/Research | Loaded intel: 18 terminal locations 16132 | -3/Research | Discovered new exit (range 5) 16160 | -3/Research | Revision forces began assault on 0b10 16170 | -3/Research | Identified exit to Research 16250 | -3/Research | Discovered new exit (range 11) 16259 | -3/Research | Met up with Revision 17++ 16278 | -3/Research | Found Antimissile System 16383 | -3/Research | Destroyed Revision 17++ 16660 | -3/Research | Research terminal network offline 16715 | -3/Research | Spotted Striker 16725 | -3/Research | Entered Armory 16907 | -3/Armory | Identified Transdimensional Reconstructor 16907 | -3/Armory | Warped through subspace to slip node 16907 | -3/Armory | Discovered new exit (range 1) 17169 | -3/Armory | DAS Turret deployed 17232 | -3/Armory | Discovered exit to Research (range 24) 17346 | -3/Armory | Fabricated Exp. Signal Interpreter (x1) 17407 | -3/Armory | System corruption reached 10% 17422 | -3/Armory | Fabricated Exp. Sensor Array? 17509 | -3/Armory | Lost 4 parts (2u2w) 17676 | -3/Armory | Lost 3 parts (1u2w) 17726 | -3/Armory | Identified exit to Lab 17728 | -3/Armory | Entered Lab 17730 | -3/Lab | Discovered exit to Research (range 9) 18049 | -3/Lab | Hidden lab's door opened automatically 18049 | -3/Lab | Sensor layout match revealed 18050 | -3/Lab | Gained access to the hidden lab's interior 18690 | -3/Lab | Found Alien Artifact 19235 | -3/Lab | Found Alien Artifact 19235 | -3/Lab | Identified Integrated Dissipator 19235 | -3/Lab | Installed Integrated Dissipator, increased core heat dissipation (+2%) 19246 | -3/Lab | Found Alien Artifact 19341 | -3/Lab | Found Prototype Energy Cannon 19341 | -3/Lab | Identified Warp Cannon 19346 | -3/Lab | Found Prototype Energy Cannon 19346 | -3/Lab | Identified Potential Cannon 19351 | -3/Lab | Found Prototype Device 19351 | -3/Lab | Identified AEGIS Remote Shield 19361 | -3/Lab | Found Prototype Hackware 19396 | -3/Lab | Found Transdimensional Reconstructor 19448 | -3/Lab | Entered Research 19448 | -2/Research | Warlord forces began assault on 0b10 19448 | -2/Research | Evolved 2 slots: Propulsion x2 19521 | -2/Research | Met up with Warlord 19530 | -2/Research | Discovered new exit (range 13) 19544 | -2/Research | Identified exit to Testing 19558 | -2/Research | Research machine network offline 19583 | -2/Research | Found Prototype Slashing Weapon 19583 | -2/Research | Identified Particle Cleaver 19585 | -2/Research | Found Exp. Melee Analysis Suite 19658 | -2/Research | Found Enh. Force Lance 19660 | -2/Research | Found Enh. Force Lance 19662 | -2/Research | Found Enh. Force Lance 19664 | -2/Research | Found Enh. Force Lance 19679 | -2/Research | Identified Deep Network Scanner 19697 | -2/Research | Identified Exp. Armor Integrity Analyzer 19715 | -2/Research | Borebot progress halted 19748 | -2/Research | Borebot progress halted 19783 | -2/Research | Identified Core Regenerator 19783 | -2/Research | Used Core Regenerator, restored core integrity (+0) 19821 | -2/Research | Spotted Striker 19822 | -2/Research | Spotted Striker 19893 | -2/Research | Spotted B-90 Cyclops 20003 | -2/Research | Borebot progress halted 20077 | -2/Research | Borebot progress halted 20081 | -2/Research | Found Prototype Processor 20082 | -2/Research | Identified Exp. Core Analyzer 20099 | -2/Research | Found Quantum Capacitor 20167 | -2/Research | Found Exp. Core Analyzer 20225 | -2/Research | Found Exp. Core Analyzer 20360 | -2/Research | Found Particle Cleaver 20364 | -2/Research | Found Exp. Melee Analysis Suite 20391 | -2/Research | Spotted Striker 20414 | -2/Research | Discovered exit to Testing (range 11) 20422 | -2/Research | Entered Testing 20430 | -2/Testing | Identified Core Reset Matrix 20538 | -2/Testing | Found Prototype Hackware 20579 | -2/Testing | Identified System Mapper 20601 | -2/Testing | Found Prototype Ballistic Gun 20608 | -2/Testing | Spotted PY-OE9G86NTJA 20645 | -2/Testing | Protovariant out of control (PY-OE9G86NTJA) 20645 | -2/Testing | Unleashed a protovariant (PY-OE9G86NTJA) 20748 | -2/Testing | Build established: Hacker-Mutant 20754 | -2/Testing | Identified Hyp. Multirail 20860 | -2/Testing | Found Prototype Device 20863 | -2/Testing | Found Prototype Device 20876 | -2/Testing | Identified Exp. Focal Shield (x2) 20944 | -2/Testing | Discovered new exit (range 13) 20961 | -2/Testing | Found Prototype Energy Cannon 21055 | -2/Testing | Identified exit to Access 21055 | -2/Testing | Entered Access 21055 | -1/Access | Evolved 2 slots: Utility x2 21070 | -1/Access | Identified exit to Command 21070 | -1/Access | Identified exit to Surface 21365 | -1/Access | Entered Command 21422 | -1/Command | Destroyed 7 combat bots 21482 | -1/Command | Spotted M Guard 21482 | -1/Command | Spotted M Guard 21484 | -1/Command | Spotted Combat Programmer 21504 | -1/Command | Spotted Combat Programmer 21510 | -1/Command | Destroyed Combat Programmer 21513 | -1/Command | Destroyed Combat Programmer 21549 | -1/Command | Destroyed M Guard 21554 | -1/Command | Found AEGIS Remote Shield 21561 | -1/Command | Destroyed M Guard 21561 | -1/Command | Destroyed all MAIN.C guards 21563 | -1/Command | Found Prototype Reactor 21563 | -1/Command | Identified Zero-point Reactor 21565 | -1/Command | Found Zero-point Reactor 21570 | -1/Command | Found Prototype Protection 21601 | -1/Command | Identified Hvy. Regenerative Plating 21639 | -1/Command | Met MAIN.C 21667 | -1/Command | Destroyed MAIN.C Shell 21667 | -1/Command | 0b10 Conduit disabled 21669 | -1/Command | MAIN.C activated Command garrisons 21679 | -1/Command | Build established: Scavenger-Mutant 21693 | -1/Command | Destroyed MAIN.C 21696 | -1/Command | Found Prototype Device 21696 | -1/Command | Identified Beam Splitter 21703 | -1/Command | Found Prototype Protection 22032 | -1/Command | Build established: Scavenger-Sprinter 22122 | -1/Command | Spotted B-99 Colossus 22242 | -1/Command | Discovered exit to Surface (range 13) 22275 | -1/Command | Found Exp. Core Analyzer 22338 | -1/Command | Warped through subspace to slip node 22338 | -1/Command | Discovered new exit (range 5) 22355 | -1/Command | Entered Access_0 22356 | -1/Access_0 | Met Architect 22371 | -1/Access_0 | Architect warped through subspace 22378 | -1/Access_0 | Destroyed A8 22433 | -1/Access_0 | Architect warped through subspace 22482 | -1/Access_0 | Architect warped through subspace 22518 | -1/Access_0 | A6 warped into view 22535 | -1/Access_0 | Destroyed A6 22540 | -1/Access_0 | Architect warped through subspace 22541 | -1/Access_0 | Found Enh. Force Lance 22551 | -1/Access_0 | Found Prototype Device 22551 | -1/Access_0 | Identified Exp. Actuator Array 22566 | -1/Access_0 | Subspace Access Node disabled 22604 | -1/Access_0 | Architect warped through subspace 22620 | -1/Access_0 | Found Prototype Slashing Weapon 22621 | -1/Access_0 | Identified Nanosword 22624 | -1/Access_0 | Found Nanosword 22641 | -1/Access_0 | A5 warped into view 22654 | -1/Access_0 | Architect warped through subspace 22662 | -1/Access_0 | Destroyed A5 22698 | -1/Access_0 | Architect warped through subspace 22701 | -1/Access_0 | Subspace Access Node disabled 22729 | -1/Access_0 | Architect warped through subspace 22745 | -1/Access_0 | Architect warped through subspace 22758 | -1/Access_0 | Subspace Access Node disabled 22769 | -1/Access_0 | Found Exp. Melee Analysis Suite 22782 | -1/Access_0 | Architect warped through subspace 22834 | -1/Access_0 | Architect warped through subspace 22863 | -1/Access_0 | Architect warped through subspace 22887 | -1/Access_0 | Architect warped through subspace 22913 | -1/Access_0 | Subspace Access Node disabled 22949 | -1/Access_0 | Found Prototype Protection 22949 | -1/Access_0 | Identified Centrium Linked Plating 22973 | -1/Access_0 | Found Centrium Linked Plating 23121 | -1/Access_0 | Found Prototype Protection 23121 | -1/Access_0 | Identified Exp. Powered Armor 23124 | -1/Access_0 | Found Exp. Powered Armor 23204 | -1/Access_0 | Destroyed A2 23210 | -1/Access_0 | Extracted Singularity Gate Test 138-C access codes from A2's data core 23233 | -1/Access_0 | Lost 3 parts (1n1u1w) 23334 | -1/Access_0 | A4 warped into view 23359 | -1/Access_0 | Singularity Gate disabled 23392 | -1/Access_0 | Destroyed A4 23406 | -1/Access_0 | Core integrity fell below 50% 23429 | -1/Access_0 | Found Exp. Powered Armor 23441 | -1/Access_0 | Found Sigix Corpse 23498 | -1/Access_0 | Build established: Scavenger-Mutant 23620 | -1/Access_0 | Destroyed Architect 23622 | -1/Access_0 | Extracted unknown sensor trigger ID from Architect's data core 23624 | -1/Access_0 | Found Alien Artifact 23662 | -1/Access_0 | Found Prototype Device 23662 | -1/Access_0 | Identified Exp. Weapon Cycler 23665 | -1/Access_0 | Found Prototype Device 23665 | -1/Access_0 | Identified Desublimator 23667 | -1/Access_0 | Found Prototype Device 23667 | -1/Access_0 | Identified Exp. Phase Shifter 23707 | -1/Access_0 | A3 warped into view 23724 | -1/Access_0 | Destroyed A3 23730 | -1/Access_0 | Identified Hpw. Transdimensional Reconstructor 23730 | -1/Access_0 | Warped through subspace to slip node 23730 | -1/Access_0 | Discovered exit to Surface (range 8) 23735 | *** | Establishing 0b11! Last Messages --------------- 23719_ Destroyed Lgt. Quantum Reactor. 23719_ Nanosword follow-up attack on A3. 23720_ Penetrated by HV Slug. 23720_ Plasma Lance follow-up attack on A3. 23720_ Nanosword follow-up attack on A3. 23722_ Plasma Lance follow-up attack on A3. 23722_ System corrupted: Plasma Lance targeting data glitched. 23722_ Nanosword follow-up attack on A3. 23724_ Penetrated by HV Slug. 23724_ HV Slug penetrates Earth. 23724_ System corrupted: Enh. Force Lance targeting data glitched. 23724_ Nanosword follow-up attack on A3. 23724_ Lgt. Regenerative Plating severed. 23724_ Plasma Lance follow-up attack on A3. 23724_ A3: "How even..." 23724_ A3 destroyed. 23727_ Acquired Cld. Antigrav System. 23730_ Identified Hpw. Transdimensional Reconstructor. 23730_ Warped through subspace, drawn to slip node. 23730_ EXIT=FOUND: SURFACE Map ----- +----------------------------------------------------+ | | | | | | | | | | | | | | | | | | | | | | | | | | | | | | | | | ?????????????????????????????????????????????????? | | ?????????????????????????????????????????????????? | | ?????????????????????????????????????????????????? | | ?????????????????????????????????????????????????? | | ?????????????????????????????????????????????????? | | ?????????????????????????????????????????????????? | | ????????????????????????###??????????????????????? | | ???????????????????????## ##?????????????????????? | | ???????????????????????# #?????????????????????? | | ???????????????????????# @ #?????????????????????? | | ??????????????????????## #?????????????????????? | | ??????????????????????# #?????????????????????? | | ??????????????????????# ##?????????????????????? | | ??????????????????????## #?????????????????????? | | ??????????????????????# #?????????????????????? | | ??????????????????????# ##?????????????????????? | | ??????????????????????# < #?????????????????????? | | ??????????????????????# ##?????????????????????? | | ??????????????????????## #??????????????????????? | | ???????????????????????####??????????????????????? | | ?????????????????????????????????????????????????? | | ?????????????????????????????????????????????????? | | ?????????????????????????????????????????????????? | | ?????????????????????????????????????????????????? | | ?????????????????????????????????????????????????? | | ?????????????????????????????????????????????????? | | ?????????????????????????????????????????????????? | | ?????????????????????????????????????????????????? | | ?????????????????????????????????????????????????? | | ?????????????????????????????????????????????????? | | ?????????????????????????????????????????????????? | | ?????????????????????????????????????????????????? | | ?????????????????????????????????????????????????? | | ?????????????????????????????????????????????????? | +----------------------------------------------------+ Best States ------------- Heat Dissipation 84 Coolant Potential 80 Energy Generation 101 Energy Capacity 1700 Matter Stores 300 Matter Capacity 300 Sight Range 22 Robot Scan Range 30 Terrain Scan Range 24 Terrain Scan Density 60 Power Amplification 80 Additional Mass Support 16 Armor Coverage 2400 Resistance: KI 30 Resistance: TH 75 Resistance: EM 90 Utility Shielding 66 Weapon Shielding 66 Weapon Cycling 20 Melee Speed Boost 50 Phase Shifting 20 Evasion (%) 86 Targeting Accuracy 12 Melee Accuracy 24 Core Analysis 15 Armor Integrity Analysis 90 Recoil Reduction 4 Particle Charging 30 Offensive Hacking 45 Defensive Hacking 24 Item Schematics ----------------- Arm. Treads | -8/Materials | Hacked Humpback | -7/Factory | Scanalyzed Antimatter Reactor | -6/Extension | Hacked Enh. Optical Array | -5/Factory | Hacked Assault Drone Bay | -4/Zhirov | Free Exp. Heat Sink | -4/Zhirov | Free Exp. Optical Array | -4/Zhirov | Free Imp. Arc Thrower | -4/Zhirov | Free Exp. Terrain Scan Processor | -3/Research | Hacked Exp. Terrain Scanner | -3/Research | Hacked Exp. Sensor Array | -3/Research | Hacked Exp. Signal Interpreter | -3/Research | Hacked Cmb. Linear Gravjet | -2/Testing | Scanalyzed Plasma Lance | -2/Testing | Scanalyzed Robot Schematics ------------------ None Fabricated ------------ Humpback | x1 | -7/Factory Humpback | x1 | -7/Factory Humpback | x1 | -5/Factory Enh. Optical Array | x1 | -5/Factory Exp. Signal Interpreter | x1 | -3/Armory Exp. Sensor Array | x1 | -3/Armory Alien Tech Used ----------------- Integrated Reactor Transdimensional Reconstructor Integrated Dissipator Core Regenerator High-powered Transdimensional Reconstructor Achievements -------------- None Challenges ------------ None Game ------ Seed SignalLobotomyCutter Manual? 0 Play Time 04:14:37 Cumulative 1479.8 hours Start 2020.02.22 @ 15:58:36 End 2020.02.22 @ 22:20:08 Sessions 7 Manual Loads 0 Difficulty Rogue Special Mode None Game No. 2386 Rogue 2379 Adventurer 0 Explorer 7 Win Type 1 Total 120 Types 39/7/53/3/3/3/12 Lore% 99 Gallery% 99 Achievement% 100 Wizard Run 0 Options --------- ASCII 0 Keyboard 1 Movement Numpad Keybinds 1 Fullscreen 1 Font 18/SmallcapsGlow Map View 76x50 Tactical HUD 1 Map Filters NONE Filters NONE Steam 1 RUN: aa1f36be-e0e7-4ec2-be40-461abf1451d2